Cogmind - Beta 13 @@@ ROGUE MODE // 2024.04.05 @ 22:26:57 Player: puppuppit Result: Heading to fleet! Performance ------------- Evolutions (9) 4500 Regions Visited (35) 7000 Robots Destroyed (428) 2140 Value Destroyed (20795) 20795 Prototype IDs (99) 1980 Alien Tech Used (10) 2000 Bonus (33391) 33391 TOTAL SCORE: 71806 Bonus ------- Triggered High Security 1000 Triggered Max Security 3000 High Alert Combat Kills 5853 Follower Combat Kills 3604 Entered Garrisons 600 Used RIF Installer 500 Aligned with FarCom 300 Met Data Miner 300 Met Imprinter 300 Acquired ECA 300 Met Warlord at Base 500 MAIN.C Attacked Warlord 500 Warlord Defense Kills 4862 Used Core Reset Matrix 3000 Met Warlord at Research 2000 Invited to Help at Command 2000 Integrated Exoskeleton 5000 Win 3000 Friendly Fire -3228 Cogmind --------- Core Integrity 1120/1600 Matter 260/550 Energy 288/290 System Corruption 1% Temperature Cool (0) Movement Walking (90) Ox1 Location To Fleet Rendezvous Parts ------- > --- POWER (1) -------- Light Quantum Reactor > --- PROPULSION (3) --- Sigix Exoskeleton > --- UTILITY (4) ------ Medium Storage Unit Centrium Heavy Armor Plating Spacefold Activator > --- WEAPON (3) ------- Sigix Sheargun Neutron Missile Launcher > --- INVENTORY (10) --- Light Particle Reactor Stasis Canceller Experimental Reaction Control System Centrium Medium Armor Plating Transdimensional Reconstructor Transdimensional Reconstructor Terrabomb Terrabomb Peak State ------------ > --- POWER ------------ Light Quantum Reactor > --- PROPULSION ------- Sigix Exoskeleton > --- UTILITY ---------- Medium Storage Unit Centrium Medium Armor Plating Spacefold Activator > --- WEAPON ----------- Sigix Sheargun Sigix Sheargun Neutron Missile Launcher > --- INVENTORY -------- Light Particle Reactor Stasis Canceller Experimental Reaction Control System Centrium Heavy Armor Plating Transdimensional Reconstructor Transdimensional Reconstructor Terrabomb Terrabomb [Rating: 234] Favorites ----------- Power Micro Nuclear Core Engine Light Angular Momentum Engine Power Core Micro Nuclear Core Reactor Compact Particle Reactor Propulsion Electron Diverter Leg Aluminum Leg Wheel Wheel Hover Unit Improved Antigrav System Flight Unit Electron Diverter Utility Hacking Suite Device Advanced Heat Sink Storage Large Storage Unit Processor Experimental Targeting Computer Hackware Hacking Suite Protection Light Regenerative Plating Artifact Spacefold Activator Weapon Precision Assault Rifle Energy Gun Small Laser Energy Cannon Enhanced Nova Cannon Ballistic Gun Precision Assault Rifle Ballistic Cannon Enhanced Gauss Cannon Launcher Smartbomb Launcher Special Weapon Enhanced Flamer Slashing Weapon Ripper Special Melee Weapon Improved Datajack Build | -11 -10 -10 -9 -9 -9 -8 -8 -7 -7 -7 -7 -7 -7 -7 -7 -6 -6 -6 -6 -6 -6 -6 -5 -5 -5 -5 -5 -4 -4 -4 -3 -2 -2 -2 -1 ------- Run | Yrd Mat Min Mat Min Exi Min Mat Fac Gar Fac Gar Fac Low Low Dat Pro Fac Was Fac Low Low Zio Pro Fac Upp Upp War Pro Fac Gar Res Res Tes Sec Acc Slots Evolved 18 | . . . 2 . . . 2 2 . . . . . . . . 2 . . . . . . 2 . . . . 2 . 2 2 . . 2 Power 1 | . . . . . . . . . . . . . . . . . . . . . . . . . . . . . . . . 1 . . . Propulsion 6 | . . . 2 . . . . . . . . . . . . . 1 . . . . . . 1 . . . . 1 . . 1 . . . Utility 10 | . . . . . . . 2 2 . . . . . . . . 1 . . . . . . 1 . . . . 1 . 2 . . . 1 Weapon 1 | . . . . . . . . . . . . . . . . . . . . . . . . . . . . . . . . . . . 1 Parts Attached 651 | 8 5 . 15 1 4 . 13 14 26 29 21 17 5 13 . 8 50 2 76 5 9 13 . 51 3 3 32 1 20 35 60 88 3 17 4 Power 64 | 1 . . 2 . 1 . 2 2 2 1 1 1 . 2 . . 5 . 6 . 2 . . 5 . . 4 1 3 2 2 16 . 1 2 Engine 14 | 1 . . 1 . 1 . 2 . 2 . . . . 1 . . . . 2 . 1 . . 3 . . . . . . . . . . . Core 18 | . . . 1 . . . . 2 . 1 1 1 . 1 . . 5 . 4 . 1 . . 1 . . . . . . . . . . . Reactor 32 | . . . . . . . . . . . . . . . . . . . . . . . . 1 . . 4 1 3 2 2 16 . 1 2 Propulsion 102 | 3 4 . 8 . 1 . . . 2 . 1 2 . 2 . . 8 2 16 . . 2 . 11 . . . . 3 2 17 17 . 1 . Treads . | . . . . . . . . . . . . . . . . . . . . . . . . . . . . . . . . . . . . Leg 6 | . . . 6 . . . . . . . . . . . . . . . . . . . . . . . . . . . . . . . . Wheel 5 | 3 2 . . . . . . . . . . . . . . . . . . . . . . . . . . . . . . . . . . Hover 13 | . 2 . 2 . . . . . . . . . . . . . . . . . . . . . . . . . . . 8 1 . . . Flight 78 | . . . . . 1 . . . 2 . 1 2 . 2 . . 8 2 16 . . 2 . 11 . . . . 3 2 9 16 . 1 . Utility 261 | 2 1 . 2 1 1 . 5 3 6 16 1 3 2 3 . 3 20 . 38 2 7 6 . 27 2 2 3 . 4 24 31 33 1 11 1 Device 128 | 1 1 . . . . . . 1 1 3 . . 2 1 . 2 9 . 26 . 5 4 . 13 1 2 2 . 1 12 21 18 . 2 . Storage 11 | 1 . . 1 . 1 . . . . . . . . . . . 1 . 2 . . . . 1 . . . . . . 1 2 . 1 . Processor 26 | . . . 1 . . . . . 1 . . . . . . . 2 . 4 1 . 1 . 5 . . . . 2 . 4 4 1 . . Hackware 39 | . . . . . . . 3 2 1 11 . 1 . . . . 3 . 4 . 1 . . 4 . . . . 1 3 3 . . 2 . Protection 53 | . . . . 1 . . 2 . 3 2 1 2 . 2 . 1 5 . 2 1 1 1 . 4 1 . 1 . . 9 2 9 . 2 1 Artifact 4 | . . . . . . . . . . . . . . . . . . . . . . . . . . . . . . . . . . 4 . Weapon 224 | 2 . . 3 . 1 . 6 9 16 12 18 11 3 6 . 5 17 . 16 3 . 5 . 8 1 1 25 . 10 7 10 22 2 4 1 Energy Gun 14 | 1 . . 2 . . . . . . . . . . . . . . . 3 . . 1 . . . . 6 . . . . . . . 1 Energy Cannon 11 | . . . . . . . . . . . . . . . . . . . . 1 . . . . . . 8 . . . . 2 . . . Ballistic Gun 87 | 1 . . . . . . 2 4 6 5 10 7 . 2 . 3 13 . 6 . . . . . 1 . . . 4 4 5 13 . 1 . Ballistic Cannon 34 | . . . . . . . . 2 2 . . . . . . . . . 4 2 . 4 . 6 . . 5 . 3 2 3 1 . . . Launcher 61 | . . . . . . . 3 2 8 3 8 4 1 1 . 2 3 . 3 . . . . 2 . 1 6 . 3 1 2 3 2 3 . Special Weapon 5 | . . . . . . . . . . . . . 2 1 . . . . . . . . . . . . . . . . . 2 . . . Impact Weapon . | . . . . . . . . . . . . . . . . . . . . . . . . . . . . . . . . . . . . Slashing Weapon 4 | . . . 1 . 1 . 1 1 . . . . . . . . . . . . . . . . . . . . . . . . . . . Piercing Weapon . | . . . . . . . . . . . . . . . . . . . . . . . . . . . . . . . . . . . . Special Melee Weapon 8 | . . . . . . . . . . 4 . . . 2 . . 1 . . . . . . . . . . . . . . 1 . . . Unidentified Prototypes 45 | . . . 1 . . . 3 2 . . . . . . . . 1 . 5 . . 2 . 2 . . 3 . 1 . 2 14 1 8 . Corrupted Parts 1 | . . . . . . . . . . . . . . 1 . . . . . . . . . . . . . . . . . . . . . System Corruption 10 | . . . . . . . . . . . . . . 10 . . . . . . . . . . . . . . . . . . . . . Parts Lost 70 | . . 1 6 . . . . . 2 . 1 3 . 3 . . 9 . 10 2 . . . 6 1 . 3 . . 9 10 3 . 1 . Power 5 | . . . . . . . . . . . . 1 . . . . 1 . . . . . . 1 . . . . . 1 1 . . . . Propulsion 25 | . . 1 5 . . . . . . . . 1 . 1 . . 3 . 4 . . . . 2 . . . . . 3 4 1 . . . Utility 26 | . . . . . . . . . 2 . . 1 . . . . 5 . 2 2 . . . 3 . . 1 . . 4 3 2 . 1 . Weapon 14 | . . . 1 . . . . . . . 1 . . 2 . . . . 4 . . . . . 1 . 2 . . 1 2 . . . . Highest Loss Streak 5 | . . 1 5 . . . . . 1 . 1 2 . 3 . . 5 . 3 2 . . . 1 1 . 3 . . 3 3 3 . 1 . To Critical Strikes . | . . . . . . . . . . . . . . . . . . . . . . . . . . . . . . . . . . . . Average Slot Usage (%) 84 | . 100 86 81 44 49 55 70 76 75 65 83 80 69 96 100 100 92 96 95 91 93 96 100 99 98 98 97 94 94 88 85 85 79 75 66 Engine 1 | . 14 10 1 . 7 11 9 . 1 . . . . . 7 7 . . . . . . . . 5 5 1 . . . . . . . . Core 2 | . . . 7 . . . . 7 5 5 7 6 . 6 . . 4 6 5 6 6 6 6 1 . . . . . . . . . . . Reactor 2 | . . . . . . . . . . . . . . . . . . . . . . . . 2 . . 3 5 5 5 3 7 8 8 9 Hover 1 | . 4 24 1 22 6 . . . . . . . . . . . . . . . . . . . . . . . . . 10 . . . . Flight 20 | . . . . . 7 11 9 7 8 15 15 15 23 29 30 30 32 29 32 33 33 33 33 35 35 35 35 35 35 27 12 23 21 15 . Device 6 | . 14 14 . . . . . . 4 . 7 4 5 5 7 7 9 6 7 6 4 6 6 6 5 5 6 11 10 13 14 12 17 10 . Storage 4 | . 14 14 11 11 11 11 9 7 7 7 7 7 7 . . . . 6 6 6 6 6 6 2 . . . . . . 2 4 4 4 9 Processor 6 | . . . 10 3 . . . . . . . . . . . . 3 6 4 3 6 6 6 11 11 11 11 11 15 10 16 14 8 6 . Hackware 17 | . . . . . . . 22 37 23 21 26 29 30 24 23 23 18 20 25 15 19 20 20 17 23 23 21 17 15 11 14 8 8 3 . Protection 5 | . . . . 7 11 11 4 . 9 5 3 1 . 13 15 15 8 6 1 11 7 5 6 4 5 5 5 5 5 8 2 5 4 5 9 Energy Gun 1 | . 14 10 7 . . . . . . . . . . . . . . . 1 . . . . . . . 2 . . . . . . 5 12 Ballistic Gun 4 | . 14 10 . . . . 6 1 10 4 14 12 . . . 5 10 13 4 . . . . . 1 3 . . 1 6 5 4 1 2 . Ballistic Cannon 2 | . . . . . . . . 6 1 . . . . . . . . . 2 7 6 9 13 10 7 3 . . . 2 . . . . . Naked Turns . | . . . . . . . . . . . . . . . . . . . . . . . . . . . . . . . . . . . . Heaviest Build 88 | 12 12 12 24 12 34 34 46 40 50 34 41 36 24 24 13 15 24 24 36 36 35 37 37 44 32 28 61 53 52 48 47 83 83 88 66 Greatest Support 86 | 26 20 12 43 12 50 50 50 50 50 36 36 36 24 24 15 15 34 37 37 37 37 37 37 45 45 38 45 45 52 53 86 84 84 84 60 Greatest Overweight (x) 2 | . . . 1 . . . . . 1 1 1 . . 1 . . 1 . 1 . . . . 1 . . 1 1 1 . 2 1 . 1 1 Average Overweight (x) . | . . . . . . . . . . . . . . . . . . . . . . . . . . . . 1 . . . . . . . Largest Inventory Capacity 15 | 8 8 8 10 10 15 15 15 15 15 15 15 15 15 15 5 5 8 8 8 8 8 8 8 8 5 5 5 5 5 5 10 10 10 10 10 Average Capacity 9 | 7 8 8 8 10 12 15 15 15 15 15 15 15 15 5 5 5 5 8 8 8 8 8 8 6 5 5 5 5 5 5 7 10 10 9 10 Most Carried 15 | 8 8 8 10 9 10 10 15 15 15 15 15 15 15 15 5 5 5 7 8 8 8 8 8 8 5 5 5 5 5 5 10 10 10 10 9 Average Carried 9 | 2 7 7 8 8 7 10 14 14 14 13 14 14 14 5 5 5 4 6 7 7 7 7 8 6 5 4 4 4 4 4 6 9 9 7 8 Final Capacity 15 | 8 8 8 10 10 15 15 15 15 15 15 15 15 15 5 5 5 8 8 8 8 8 8 8 5 5 5 5 5 5 5 10 10 10 10 10 Final Carried 15 | 7 8 8 9 8 10 10 15 15 15 15 15 14 14 5 5 5 5 7 8 8 8 8 8 5 5 5 5 5 5 5 7 10 9 9 8 Class Distribution -------------------- 41% | Hacker-Sprinter 23% | Hacker-Mutant 12% | Commander-Mutant 6% | Mutant 4% | Hacker-Scout 3% | Scavenger-Mutant Dominant Class ---------------- Mutant | -10/Materials Mutant | -10/Mines Scavenger-Mutant | -9/Materials Mutant | -9/Mines Mutant | -9/Exiles Mutant | -8/Mines Hacker-Mutant | -8/Materials Hacker-Mutant | -7/Factory Hacker-Mutant | -7/Garrison Commander-Mutant | -7/Factory Commander-Mutant | -7/Garrison Commander-Mutant | -7/Factory Hacker-Sprinter | -7/Lower Caves Hacker-Sprinter | -7/Lower Caves Hacker-Sprinter | -7/Data Miner Hacker-Sprinter | -6/Proximity Caves Hacker-Sprinter | -6/Factory Hacker-Sprinter | -6/Waste Hacker-Sprinter | -6/Factory Hacker-Sprinter | -6/Lower Caves Hacker-Sprinter | -6/Lower Caves Hacker-Sprinter | -6/Zion Hacker-Sprinter | -5/Proximity Caves Hacker-Sprinter | -5/Factory Hacker-Sprinter | -5/Upper Caves Hacker-Sprinter | -5/Upper Caves Hacker-Mutant | -5/Warlord Hacker-Mutant | -4/Proximity Caves Hacker-Sprinter | -4/Factory Hacker-Sprinter | -4/Garrison Scavenger-Mutant | -3/Research Hacker-Sprinter | -2/Research Hacker-Scout | -2/Testing Scavenger-Scout | -2/Section 7 Alien-Sigix | -1/Access Resources | -11 -10 -10 -9 -9 -9 -8 -8 -7 -7 -7 -7 -7 -7 -7 -7 -6 -6 -6 -6 -6 -6 -6 -5 -5 -5 -5 -5 -4 -4 -4 -3 -2 -2 -2 -1 ----------- Run | Yrd Mat Min Mat Min Exi Min Mat Fac Gar Fac Gar Fac Low Low Dat Pro Fac Was Fac Low Low Zio Pro Fac Upp Upp War Pro Fac Gar Res Res Tes Sec Acc Matter Collected 17247 | 427 41 252 130 25 . . 309 406 951 873 801 447 182 160 . 194 883 . 1809 104 171 67 . 2590 164 383 698 25 451 1471 1036 1603 . 300 294 Remotely 1082 | 325 41 217 . . . . . . . . . . . . . . . . . . . . . . . . . . . . 70 429 . . . Salvage Created 14958 | 210 82 220 646 . . . 816 937 990 354 555 597 51 . . 50 1053 . 947 28 37 . . 1838 109 191 1327 . 548 909 1524 691 . 113 135 Parts 795 | 21 10 11 42 . . . 59 60 47 21 30 39 7 . . 4 66 . 54 2 . . . 60 2 11 35 . 34 40 88 30 . 9 13 Haulers Intercepted 18 | . . . 2 . . . 5 1 . 3 . . . . . . 1 . 3 . . . . 1 . . . . . . . 2 . . . Recyclers Shooed 9 | . . . . . . . . 3 . . . . . . . . . . 1 . . . . 3 . . . . 1 . 1 . . . . Parts Field Recycled . | . . . . . . . . . . . . . . . . . . . . . . . . . . . . . . . . . . . . Retrieved Matter . | . . . . . . . . . . . . . . . . . . . . . . . . . . . . . . . . . . . . Parts Self-Destructed 46 | . . . . . . . . . . . . . 10 4 . 3 . . . . 15 . 3 . . 11 . . . . . . . . . Prevented 9 | . . . . . . . . . . . . . . 3 . . . . . 3 2 . . . . 1 . . . . . . . . . Kills | -11 -10 -10 -9 -9 -9 -8 -8 -7 -7 -7 -7 -7 -7 -7 -7 -6 -6 -6 -6 -6 -6 -6 -5 -5 -5 -5 -5 -4 -4 -4 -3 -2 -2 -2 -1 ------- Run | Yrd Mat Min Mat Min Exi Min Mat Fac Gar Fac Gar Fac Low Low Dat Pro Fac Was Fac Low Low Zio Pro Fac Upp Upp War Pro Fac Gar Res Res Tes Sec Acc Combat Hostiles Destroyed 291 | . . 3 11 . . . 11 6 33 5 15 12 4 . . 5 17 . 18 1 . . . 37 . 9 39 . 12 25 13 5 . 4 6 Melee 14 | . . . 8 . . . 5 . . . . . . . . . . . . . . . . . . . . . . 1 . . . . . Guns 80 | . . 3 3 . . . . 1 13 1 6 4 . . . 1 10 . 3 . . . . . . 1 5 . . 14 11 4 . . . Cannons 57 | . . . . . . . . 1 2 . . . . . . . . . 3 1 . . . 31 . . 10 . 1 5 2 1 . . . AOE 140 | . . . . . . . 6 4 18 4 9 8 4 . . 4 7 . 12 . . . . 6 . 8 24 . 11 5 . . . 4 6 Classes Destroyed 26 | 3 2 1 5 . . . . 1 1 . 2 1 . . . . . . 1 1 . . . 1 . . 6 . . . . 1 . . . Worker 28 | 2 1 1 . . . . 3 3 . 2 . 3 . . . . 2 . 4 . . . . 1 . . . . 4 . 2 . . . . Builder 18 | . . . 1 . . . 2 3 . . . 2 . . . . 2 . . . . . . 2 . . . . 2 . 2 2 . . . Tunneler 16 | 5 1 . 1 . . . 1 2 . . . 1 . . . . . . 2 . . . . 2 . . . . . . . 1 . . . Hauler 18 | . . . 2 . . . 5 1 . 3 . . . . . . 1 . 3 . . . . 1 . . . . . . . 2 . . . Recycler 23 | 1 . 1 1 . . . . 8 . . . 2 . . . . 1 . 1 . . . . 3 . . . . . . 5 . . . . Carrier 1 | . . . . . . . . . . . . . . . . . . . . . . . . . . . . . . . . 1 . . . Minesweeper 1 | . . . . . . . . . . . . . . . . . . . . 1 . . . . . . . . . . . . . . . Mechanic 2 | . . . . . . . . . . . . . . . . . . . . . . . . 2 . . . . . . . . . . . Operator 9 | . 1 . . . . . 2 1 . 2 . . . . . . . . . . . . . 1 . . . . . . . 2 . . . Watcher 9 | . 1 . 1 . . . 1 1 . . . . . . . . . . 2 . . . . 1 . . . . 2 . . . . . . Swarmer 67 | . . . 2 . . . 3 . 7 . 4 . 4 . . 4 7 . 4 1 . . . 6 . 4 . . . 12 1 1 . 3 4 Cutter 7 | . . . . . . . . . . . 1 . . . . . . . . . . . . . . . . . 4 . . . . . 2 Saboteur 5 | . . . . . . . . . . . . . . . . . . . . . . . . . . . 3 . . 2 . . . . . Grunt 105 | . . 3 7 . . . 3 3 17 3 5 6 . . . . 3 . 1 . . . . 23 . 5 6 . 4 8 6 1 . 1 . Brawler 7 | . . . . . . . . . . . . . . . . . . . . . . . . . . . 6 . . . . 1 . . . Duelist 7 | . . . 1 . . . . . . . 2 1 . . . . . . 1 . . . . . . . 2 . . . . . . . . Protector 12 | . . . . . . . . . . . . 1 . . . . . . 2 . . . . 1 . . 8 . . . . . . . . Sentry 23 | . . . 1 . . . 5 2 4 1 1 3 . . . . 2 . 2 . . . . 2 . . . . . . . . . . . Demolisher 3 | . . . . . . . . . . . . . . . . . . . . . . . . . . . 3 . . . . . . . . Specialist 2 | . . . . . . . . . . . 1 . . . . . . . . . . . . 1 . . . . . . . . . . . Hunter 21 | . . . . . . . . 1 2 . . 2 . . . 1 4 . 3 . . . . 3 . . . . 2 2 . 1 . . . Programmer 21 | . . . . . . . . . 3 1 1 . . . . . 1 . 4 . . . . 1 . . 3 . 1 . 6 . . . . Behemoth 4 | . . . . . . . . . . . . . . . . . . . 1 . . . . . . . 1 . 1 1 . . . . . Striker 2 | . . . . . . . . . . . . . . . . . . . . . . . . . . . 2 . . . . . . . . Executioner 3 | . . . . . . . . . . . . . . . . . . . . . . . . . . . 2 . . . . 1 . . . Surgeon 2 | . . . . . . . . . . . . . . . . . . . . . . . . . . . 2 . . . . . . . . Wasp 3 | . . . . . . . . . . . . . . . . . . . . . . . . 2 . . 1 . . . . . . . . Thug 4 | . . . . . . . . . . . . . . . . . . . . . . . . . . . 4 . . . . . . . . Butcher 2 | . . . . . . . . . . . . . . . . . . . . . 1 . . . . . 1 . . . . . . . . Marauder 1 | . . . . . . . . . . . . . . . . . . . . . . . . . . . 1 . . . . . . . . Mutant 1 | . . . . . . . . . . . . . . . . . . . . . . . . . . . 1 . . . . . . . . Infiltrator 1 | . . . . . . . . . . . . . . . . . 1 . . . . . . . . . . . . . . . . . . Best Kill Streak 17 | 4 2 1 5 . . . 6 10 6 4 3 17 4 . . 4 11 . 13 1 . . . 7 . 8 11 . 14 6 4 4 . 4 6 Combat Bots Only 11 | . . 1 4 . . . 6 3 6 3 3 6 4 . . 4 5 . 8 1 . . . 5 . 8 11 . 7 6 4 2 . 4 6 Max Kills in Single Turn 9 | 1 1 1 1 . . . 3 3 4 4 2 4 4 . . 3 4 . 9 1 1 . . 7 . 3 5 . 3 3 2 1 . 2 4 Gunslinging 1 | . . . . . . . . . . . . . . . . . 1 . . . . . . . . . . . . . . . . . . Exploded 6 | . . . . . . . 1 1 4 2 2 2 4 . . 3 4 . 6 . . . . 4 . 3 3 . 3 3 . . . 2 4 Melee 1 | . . . 1 . . . 1 . . . . . . . . . . . . . . . . . . . . . . 1 . . . . . Uniques/NPCs Destroyed . | . . . . . . . . . . . . . . . . . . . . . . . . . . . . . . . . . . . . Combat | -11 -10 -10 -9 -9 -9 -8 -8 -7 -7 -7 -7 -7 -7 -7 -7 -6 -6 -6 -6 -6 -6 -6 -5 -5 -5 -5 -5 -4 -4 -4 -3 -2 -2 -2 -1 -------- Run | Yrd Mat Min Mat Min Exi Min Mat Fac Gar Fac Gar Fac Low Low Dat Pro Fac Was Fac Low Low Zio Pro Fac Upp Upp War Pro Fac Gar Res Res Tes Sec Acc Hostile Shots Fired 2144 | . 8 14 101 1 . . 38 38 177 44 162 187 16 24 . 19 134 . 146 24 31 . 17 101 7 1 28 . 13 205 182 56 40 253 77 Missed 1022 | . 5 4 28 1 . . 19 16 85 25 81 95 13 12 . 8 53 . 67 12 18 . 8 39 3 1 15 . 7 96 80 24 35 142 30 Damage Taken 17827 | . 33 137 897 . . . 273 273 1076 207 849 571 48 162 . 189 1361 . 1441 237 159 . 172 1177 80 . 322 . 65 1471 2263 783 8 2568 1005 Core 3627 | . . 40 263 . . . 6 24 104 35 106 117 17 32 . 68 277 . 162 69 31 . 39 124 . . 47 . . 259 487 38 . 802 480 Absorbed by Shields 1623 | . . . . . . . . . 304 . 222 88 . . . . . . . . . . . . . . 119 . 50 612 6 48 30 144 . Redirected to Shielding 109 | . . . . . . . . . 20 . . 6 . . . 32 43 . . . . . . . . . . . . 8 . . . . . Ignored by Resistances 1643 | . . . . . . . . . . . . . . . . . . . . 2 . . . . . . . . . . . . . 854 787 Regen/Repaired (Parts) 2294 | . . . . . . . 89 . . . . . . . . . 129 . 172 45 101 24 12 476 11 . 178 . 4 249 263 176 . 365 . Core Remaining (%) 64 | 100 . 84 . . . 34 98 . . . . . . . . 28 . . . . . . 32 . . . . 82 . 77 62 . . 37 70 Volleys Fired 1067 | 17 6 25 13 . . . 13 34 84 17 57 35 1 5 . 13 64 . 71 10 9 3 . 163 4 20 70 2 32 120 66 76 1 32 4 Largest 2 | 2 2 2 1 . . . 1 2 2 1 2 2 1 1 . 1 2 . 2 2 1 1 . 2 2 2 2 1 2 2 2 2 2 2 2 Hottest 200 | 60 60 60 45 . . . 36 84 76 49 72 74 49 80 . 49 82 . 99 106 53 53 . 114 114 87 97 46 100 88 88 185 73 200 200 Shots Fired 1692 | 34 11 40 13 . . . 13 49 133 17 93 64 1 4 . 12 107 . 109 12 8 3 . 298 7 29 111 2 40 196 127 112 2 39 6 Gun 975 | 34 11 40 13 . . . 3 13 92 13 81 55 . 2 . 8 102 . 53 . . . . . . 9 49 . 16 166 105 76 2 28 4 Cannon 551 | . . . . . . . . 32 22 . . . . . . . . . 39 12 8 3 . 293 7 12 36 . 9 27 19 32 . . . Launcher 162 | . . . . . . . 10 4 19 4 12 9 1 1 . 4 5 . 17 . . . . 5 . 8 26 2 15 3 3 1 . 11 2 Special 4 | . . . . . . . . . . . . . . 1 . . . . . . . . . . . . . . . . . 3 . . . Kinetic 1341 | 17 6 25 . . . . 3 45 114 13 81 55 . 2 . 8 102 . 76 12 8 3 . 293 7 21 1 . 25 193 124 86 2 19 . Thermal 76 | 17 5 15 . . . . . . . . . . . 1 . . . . 16 . . . . . . . . . . . . 22 . . . Explosive 156 | . . . . . . . 10 4 19 4 12 9 1 1 . 4 5 . 17 . . . . 3 . 8 26 2 15 3 . . . 11 2 Electromagnetic 19 | . . . 13 . . . . . . . . . . . . . . . . . . . . 2 . . . . . . 3 1 . . . Slashing 13 | . . . . . . . . . . . . . . . . . . . . . . . . . . . . . . . . . . 9 4 Entropic 84 | . . . . . . . . . . . . . . . . . . . . . . . . . . . 84 . . . . . . . . Robot Hit Streak 23 | 8 3 8 8 . . . 7 8 21 12 13 7 . 2 . 1 10 . 11 6 . . . 12 3 4 21 23 9 23 13 12 3 5 2 Robot Miss Streak 10 | 3 1 2 1 . . . 3 4 4 1 4 4 1 2 . 3 4 . 3 2 2 . . 7 1 3 6 . 2 6 10 3 1 1 2 Penetration Max 2 | . . . . . . . . 1 . . . . . . . . 2 . . . . . . 1 1 . . . 1 2 1 1 . . 1 Secondary Targets 6 | . . . . . . . . . 1 . 1 . . . . . 2 . . . . . . . . . . . . . 1 1 . . . Max Gunslinging Chain 1 | . . . . . . . . . 1 . 1 . . . . . 1 . . . . . . . . . . . . . 1 1 . . . Shots Hit Robots 1050 | 21 6 29 40 . . . 45 40 90 14 49 38 . 2 . 4 71 . 58 8 . . . 153 5 11 72 2 16 118 77 72 1 6 2 Core Hits 848 | 9 5 10 16 . . . 26 27 86 20 35 38 4 . . 6 50 . 59 3 1 . . 79 2 13 153 1 35 67 62 25 1 8 7 Critical Kills 21 | . . . . . . . . . . 1 . . . . . . 6 . . . . . . . . . . . . . 12 2 . . . Critical Parts Destroyed 25 | . . . . . . . . . . . 1 . . . . . 13 . . . . . . . . . 2 . . 1 7 1 . . . Critical Strikes 120 | . . . 3 . . . 6 3 1 1 1 . . . . . 19 . 1 . . . . 44 . 1 16 . . 2 19 3 . . . Meltdown 1 | . . . . . . . . . . . . . . . . . . . . . . . . . . . . . . . . 1 . . . Destroy 44 | . . . . . . . . . . 1 1 . . . . . 19 . . . . . . . . . . . . 2 19 2 . . . Blast 50 | . . . . . . . . 3 1 . . . . . . . . . 1 . . . . 44 . 1 . . . . . . . . . Sever 9 | . . . 3 . . . 6 . . . . . . . . . . . . . . . . . . . . . . . . . . . . Detonate 2 | . . . . . . . . . . . . . . . . . . . . . . . . . . . 2 . . . . . . . . Sunder 14 | . . . . . . . . . . . . . . . . . . . . . . . . . . . 14 . . . . . . . . Melee Attacks 124 | . . . 38 . . . 64 17 . 3 . . . . . 2 . . . . . . . . . . . . . . . . . . . Impact . | . . . . . . . . . . . . . . . . . . . . . . . . . . . . . . . . . . . . Slashing 119 | . . . 38 . . . 64 17 . . . . . . . . . . . . . . . . . . . . . . . . . . . Piercing . | . . . . . . . . . . . . . . . . . . . . . . . . . . . . . . . . . . . . Sneak Attacks 23 | . . . 6 . . . 11 6 . . . . . . . . . . . . . . . . . . . . . . . . . . . Combat Hostiles 1 | . . . . . . . 1 . . . . . . . . . . . . . . . . . . . . . . . . . . . . Follow-up Attacks . | . . . . . . . . . . . . . . . . . . . . . . . . . . . . . . . . . . . . Damage Inflicted 58287 | 274 73 370 1484 . . . 2681 1815 3628 1106 2582 2566 303 30 . 642 2138 . 5286 244 31 . . 7885 206 1273 11352 51 2371 3699 2033 2277 55 895 937 Guns 14111 | 274 73 370 157 . . . 15 241 1424 249 975 619 . 19 . 49 951 . 600 . . . . . . 89 2125 . 201 2546 1583 1239 55 92 165 Cannons 11943 | . . . . . . . . 540 187 . . . . . . . . . 767 244 31 . . 5897 206 141 1975 . 46 540 358 1011 . . . Explosions 28146 | . . . . . . . 696 467 2017 857 1607 1947 303 . . 593 1187 . 3919 . . . . 1988 . 1043 7252 51 2124 613 90 27 . 718 647 Melee 3860 | . . . 1323 . . . 1970 567 . . . . . . . . . . . . . . . . . . . . . . . . . . . Ramming 216 | . . . 4 . . . . . . . . . . . . . . . . . . . . . . . . . . . 2 . . 85 125 Kinetic 20228 | 139 51 236 . . . . 15 781 1611 249 975 619 . 19 . 49 951 . 1179 244 31 . . 5897 206 230 . . 247 3086 1941 1387 55 30 . Thermal 5583 | 135 22 134 . . . . . . . 438 . . . 11 . . . . 2089 . . . . 1326 . . 315 . 250 . . 863 . . . Explosive 23662 | . . . . . . . 696 442 2017 419 1607 1947 303 . . 593 1187 . 2018 . . . . 550 . 1043 6937 51 1874 613 . . . 718 647 Electromagnetic 411 | . . . 157 . . . . 25 . . . . . . . . . . . . . . . 112 . . . . . . 90 27 . . . Impact . | . . . . . . . . . . . . . . . . . . . . . . . . . . . . . . . . . . . . Slashing 4087 | . . . 1323 . . . 1970 567 . . . . . . . . . . . . . . . . . . . . . . . . . 62 165 Piercing . | . . . . . . . . . . . . . . . . . . . . . . . . . . . . . . . . . . . . Entropic 4100 | . . . . . . . . . . . . . . . . . . . . . . . . . . . 4100 . . . . . . . . Highest Corruption 16 | . 4 4 . . . . . . 2 4 6 6 6 16 16 16 10 10 10 4 4 4 . . . . . . . . 4 . . 5 1 Average Corruption 5 | . 3 4 . . . . . . 2 3 5 6 6 13 16 16 9 10 5 4 4 4 . . . . . . . . 2 . . 1 1 Corruption Purged 14 | . . . . . . . . . . . . . . . . . . . 8 . . . . . . . . . . . 6 . . . . Corruption Blocked 18 | . . . . . . . . . . . . . . . . . . . 1 . . . . . . . 13 . . . . 4 . . . Effects 192 | . 3 13 . . . . . . 5 31 28 12 4 14 . 7 22 2 27 2 5 1 . . . . . . . . 11 . . 5 . Message Errors 40 | . . 1 . . . . . . . 11 8 3 2 2 . 1 2 1 5 . 2 . . . . . . . . . 2 . . . . Matter Fused 51 | . 1 7 . . . . . . 2 5 9 1 1 4 . 3 3 . 7 1 1 . . . . . . . . . 3 . . 3 . Heat Flow Errors 18 | . . 3 . . . . . . 1 6 1 1 . 2 . . 2 . 1 . . . . . . . . . . . 1 . . . . Energy Discharges 25 | . . 1 . . . . . . . 5 3 2 . . . . 5 . 7 . 1 . . . . . . . . . 1 . . . . Parts Rejected 6 | . 2 . . . . . . . . . 1 1 . . . . . 1 1 . . . . . . . . . . . . . . . . Parts Fused 2 | . . . . . . . . . . . . . . 1 . . 1 . . . . . . . . . . . . . . . . . . Data Loss (minor) 26 | . . . . . . . . . 2 2 3 3 1 2 . 1 5 . 2 1 . 1 . . . . . . . . 2 . . 1 . Data Loss (major) 6 | . . 1 . . . . . . . 1 1 . . . . 1 1 . 1 . . . . . . . . . . . . . . . . Misfires 5 | . . . . . . . . . . . 1 . . . . . 1 . 2 . . . . . . . . . . . . . . 1 . Alerts 8 | . . . . . . . . . . 1 1 1 . 2 . . 1 . 1 . . . . . . . . . . . 1 . . . . Misdirections 1 | . . . . . . . . . . . . . . . . . 1 . . . . . . . . . . . . . . . . . . Weapon Failures 4 | . . . . . . . . . . . . . . 1 . 1 . . . . 1 . . . . . . . . . 1 . . . . Overload Shots . | . . . . . . . . . . . . . . . . . . . . . . . . . . . . . . . . . . . . Overflow Damage 2555 | . . . 75 . . . 280 186 20 126 36 133 10 . . 61 73 . 463 5 . . . 461 28 47 228 . 114 65 . 68 . 55 21 Projectiles 549 | . . . . . . . . 25 . . . . . . . . . . 92 5 . . . 223 28 . 108 . . . . 68 . . . Explosions 1497 | . . . . . . . 24 20 20 126 36 133 10 . . 61 73 . 371 . . . . 238 . 47 120 . 114 65 . . . 39 . Melee 509 | . . . 75 . . . 256 141 . . . . . . . . . . . . . . . . . . . . . . . . . 16 21 Knockbacks 55 | . . . . . . . . 3 . . . . . . . . . . 3 4 . . . 12 . . . . . 19 12 . . . 2 Impact 2 | . . . . . . . . . . . . . . . . . . . . . . . . . . . . . . . . . . . 2 Kinetic 50 | . . . . . . . . 3 . . . . . . . . . . 3 3 . . . 11 . . . . . 18 12 . . . . Secondary 3 | . . . . . . . . . . . . . . . . . . . . 1 . . . 1 . . . . . 1 . . . . . Self-Inflicted Damage 953 | . . . . . . . 26 . 299 28 182 . . . . . . . 179 . . . . . . . . . 20 . 19 . . 175 25 Shots 25 | . . . . . . . 1 . 11 1 3 . . . . . . . 4 . . . . . . . . . 1 . 1 . . 2 1 Rammed 1 | . . . . . . . . . . . . . . . . . . . . . . . . . . . . . . . 1 . . . . Targets Rammed 11 | . . . 1 . . . . . . . . . . . . . . . . . . . . . . . . . . . 1 . . 4 5 Kicked 10 | . . . 1 . . . . . . . . . . . . . . . . . . . . . . . . . . . . . . 4 5 Crushed . | . . . . . . . . . . . . . . . . . . . . . . . . . . . . . . . . . . . . Highest Temperature 468 | . . 228 51 . . . 73 81 150 272 103 166 . 266 . . 249 4 331 30 279 11 4 378 34 36 180 . 468 183 228 227 . 9 . Average Temperature 59 | . . 74 27 . . . 23 25 35 97 19 30 . 130 . . 66 4 30 12 95 4 4 69 17 14 27 . 188 53 67 63 . 9 . Received Heat Transfer 2421 | . 18 102 237 . . . 81 48 286 51 150 129 9 9 . . 45 . 198 6 48 . 9 282 9 . 30 . 12 233 123 45 . 144 117 Effects 18 | . . 1 . . . . . . . . . . . 1 . . 1 . . . 3 . . 8 . . . . 4 . . . . . . Shutdowns 1 | . . . . . . . . . . . . . . . . . . . . . . . . 1 . . . . . . . . . . . Energy Bleed 7 | . . . . . . . . . . . . . . . . . 1 . . . . . . 3 . . . . 3 . . . . . . Interference 9 | . . 1 . . . . . . . . . . . 1 . . . . . . 3 . . 4 . . . . . . . . . . . Short Circuit 1 | . . . . . . . . . . . . . . . . . . . . . . . . . . . . . 1 . . . . . . Siege Activations . | . . . . . . . . . . . . . . . . . . . . . . . . . . . . . . . . . . . . Robots Corrupted . | . . . . . . . . . . . . . . . . . . . . . . . . . . . . . . . . . . . . Combat Hostiles . | . . . . . . . . . . . . . . . . . . . . . . . . . . . . . . . . . . . . Parts Fried 2 | . . . 2 . . . . . . . . . . . . . . . . . . . . . . . . . . . . . . . . Impact Corruptions 3 | . . . . . . . . . . . . . . . . . . . . 1 . . . . . . . . . . . . . 1 1 Robots Melted 1 | . . . . . . . . . . . . . . . . . . . . . . . . . . . . . . . . 1 . . . Combat Hostiles . | . . . . . . . . . . . . . . . . . . . . . . . . . . . . . . . . . . . . Parts Melted 6 | . . . . . . . . . . . . 1 . . . . . . 2 . . . . 1 . . 1 . . . . 1 . . . Heat Transferred 4456 | 300 50 300 . . . . . . . 250 . . . 80 . . . . 1536 . . . . 900 . . 200 . 100 . . 740 . . . Parts Sabotaged 7 | . . . . . . . . . . . . . . . . . . . . . . . . . . . . . . 7 . . . . . Parts Stolen . | . . . . . . . . . . . . . . . . . . . . . . . . . . . . . . . . . . . . Parts Stripped . | . . . . . . . . . . . . . . . . . . . . . . . . . . . . . . . . . . . . Power Chain Reactions . | . . . . . . . . . . . . . . . . . . . . . . . . . . . . . . . . . . . . Alert | -11 -10 -10 -9 -9 -9 -8 -8 -7 -7 -7 -7 -7 -7 -7 -7 -6 -6 -6 -6 -6 -6 -6 -5 -5 -5 -5 -5 -4 -4 -4 -3 -2 -2 -2 -1 ------- Run | Yrd Mat Min Mat Min Exi Min Mat Fac Gar Fac Gar Fac Low Low Dat Pro Fac Was Fac Low Low Zio Pro Fac Upp Upp War Pro Fac Gar Res Res Tes Sec Acc Peak Influence 3444 | 40 51 155 374 138 . . 422 518 1657 1321 3444 2477 . . . . 640 218 1078 . . . . 2388 . . . . 1029 1685 1221 819 1660 2856 1886 Initial 1808 | . 26 16 . 138 . . . 55 362 869 865 1808 . . . . 506 188 152 . . . . . . . . . . 580 947 686 389 1100 1713 Average 909 | 16 33 50 169 138 . . 94 220 1036 696 2392 2095 . . . . 469 191 411 . . . . 1181 . . . . 573 1200 1042 681 1610 2422 1776 Maximum Alert Level 5 | . . . 1 . . . 2 2 5 4 5 5 . . . . 2 1 3 . . . . 5 . . . . 3 5 4 3 5 5 5 Low Security (%) 18 | 100 100 100 60 100 . 100 89 53 . . . . . . . . . 85 30 . . . . 9 . . . . 26 . . . . . . Level 1 9 | . . . 39 . . . 8 31 3 9 . . . . . . 24 14 42 . . . . 3 . . . . 10 . . . 1 . . Level 2 19 | . . . . . . . 2 14 20 47 . . . . . . 74 . . . . . . 7 . . . . 6 1 . 71 . . . Level 3 22 | . . . . . . . . . 33 31 12 . . . . . . . 27 . . . . 15 . . . . 56 40 69 28 . . . Level 4 14 | . . . . . . . . . 42 11 5 . . . . . . . . . . . . 43 . . . . . 55 30 . . . . Level 5 6 | . . . . . . . . . . . 81 48 . . . . . . . . . . . 5 . . . . . 3 . . . . 2 High Security 2 | . . . . . . . . . . . . 51 . . . . . . . . . . . 13 . . . . . . . . . . . Max Security 6 | . . . . . . . . . . . . . . . . . . . . . . . . . . . . . . . . . 98 99 97 Squads Dispatched 163 | . 1 1 . . . . 6 4 . 7 . 11 . . . . 13 . 19 . . . . 26 . . . . 13 . 11 5 . 31 15 Investigation 38 | . 1 1 . . . . 3 2 . 3 . 2 . . . . 3 . 7 . . . . 7 . . . . 5 . 1 3 . . . Extermination 10 | . . . . . . . . . . 2 . . . . . . 1 . 2 . . . . 1 . . . . 1 . 3 . . . . Reinforcement 33 | . . . . . . . 3 1 . 1 . 1 . . . . 4 . 3 . . . . 8 . . . . 3 . 4 2 . 1 2 Assault 67 | . . . . . . . . . . 1 . 8 . . . . . . 3 . . . . 9 . . . . 1 . 3 . . 30 12 Garrison 15 | . . . . . . . . 1 . . . . . . . . 5 . 4 . . . . 1 . . . . 3 . . . . . 1 Intercept . | . . . . . . . . . . . . . . . . . . . . . . . . . . . . . . . . . . . . Searches Triggered 1 | . . . . . . . . . . . . . . . . . 1 . . . . . . . . . . . . . . . . . . Construction Impeded 9 | . . . . . . . 1 1 . . . 1 . . . . 1 . 1 . . . . 4 . . . . . . . . . . . Haulers Reinforced 9 | . . . . . . . . . . 1 . . . . . . 3 . 2 . . . . 2 . . . . . . 1 . . . . Active Scanning Responses . | . . . . . . . . . . . . . . . . . . . . . . . . . . . . . . . . . . . . Cargo Convoy Interrupts 1 | . . . . . . . . . . . . . . . . . . . 1 . . . . . . . . . . . . . . . . Stealth | -11 -10 -10 -9 -9 -9 -8 -8 -7 -7 -7 -7 -7 -7 -7 -7 -6 -6 -6 -6 -6 -6 -6 -5 -5 -5 -5 -5 -4 -4 -4 -3 -2 -2 -2 -1 --------- Run | Yrd Mat Min Mat Min Exi Min Mat Fac Gar Fac Gar Fac Low Low Dat Pro Fac Was Fac Low Low Zio Pro Fac Upp Upp War Pro Fac Gar Res Res Tes Sec Acc Distress Signals 32 | . . . . . . . 1 1 . 1 1 . . . . . 2 . 1 . . . . 4 . . . . . . . 12 . 6 3 Communications Jammed 13 | . . . . . . . . . . . . . . . . . . . . . . . . . . . . . . . 13 . . . . Distress Signals 13 | . . . . . . . . . . . . . . . . . . . . . . . . . . . . . . . 13 . . . . Times Spotted 956 | . 8 6 19 4 . . 17 9 34 17 40 19 16 7 . 9 38 5 58 8 14 . 14 116 12 14 99 . 13 33 61 50 6 166 44 Peak Tracking Total 37 | . 7 3 5 4 . . 6 2 5 4 13 9 9 3 . 4 7 5 9 5 5 . 13 14 7 4 15 . 7 7 12 8 6 37 15 Tactical Retreats 80 | . . 1 1 . . . 1 . 1 . 4 . 4 3 . . 6 . 7 3 6 . . 7 3 3 1 . . 3 10 9 1 4 2 Traps | -11 -10 -10 -9 -9 -9 -8 -8 -7 -7 -7 -7 -7 -7 -7 -7 -6 -6 -6 -6 -6 -6 -6 -5 -5 -5 -5 -5 -4 -4 -4 -3 -2 -2 -2 -1 ------- Run | Yrd Mat Min Mat Min Exi Min Mat Fac Gar Fac Gar Fac Low Low Dat Pro Fac Was Fac Low Low Zio Pro Fac Upp Upp War Pro Fac Gar Res Res Tes Sec Acc Traps Triggered 21 | . 3 . . . . . 2 . 3 . 2 . . . . . 2 . . . . . . . . . . . . 8 1 . . . . Indirectly 1 | . . . . . . . . . . . . . . . . . . . . . . . . . . . . . . . 1 . . . . Trap Hack Attempts . | . . . . . . . . . . . . . . . . . . . . . . . . . . . . . . . . . . . . Triggered . | . . . . . . . . . . . . . . . . . . . . . . . . . . . . . . . . . . . . Disarmed 12 | . . . . . . . . . . . . . . . . . 4 . . . . . . 8 . . . . . . . . . . . Reprogrammed 11 | . . . . . . . 3 . . 7 . . . . . . . . 1 . . . . . . . . . . . . . . . . Reused 1 | . . . . . . . . . . . . . . . . . . . . 1 . . . . . . . . . . . . . . . Traps Extracted . | . . . . . . . . . . . . . . . . . . . . . . . . . . . . . . . . . . . . Installed 11 | . . . . . . . . . . . . . . . . . . . . 11 . . . . . . . . . . . . . . . Triggered 21 | . . . . . . . . . . . . . 4 1 . . . . . 1 . . 1 . . . 14 . . . . . . . . Machines | -11 -10 -10 -9 -9 -9 -8 -8 -7 -7 -7 -7 -7 -7 -7 -7 -6 -6 -6 -6 -6 -6 -6 -5 -5 -5 -5 -5 -4 -4 -4 -3 -2 -2 -2 -1 ---------- Run | Yrd Mat Min Mat Min Exi Min Mat Fac Gar Fac Gar Fac Low Low Dat Pro Fac Was Fac Low Low Zio Pro Fac Upp Upp War Pro Fac Gar Res Res Tes Sec Acc Machines Disabled 123 | . . . . . . . 5 5 7 7 15 1 . . . . 8 . 11 . . . . 28 . . 1 . 7 6 . 1 . 21 . Max in Single Turn 12 | . . . . . . . 2 2 2 4 4 . . . . . 2 . 5 . . . . 12 . . 1 . 5 1 . 1 . 5 . Garrison Access 3 | . . . . . . . . . . . . . . . . . . . 1 . . . . . . . . . 1 . . 1 . . . Garrison Relay 18 | . . . . . . . . . 4 . 9 . . . . . . . . . . . . . . . . . . 5 . . . . . Phase Generator 2 | . . . . . . . . . 1 . 1 . . . . . . . . . . . . . . . . . . . . . . . . Machines Repaired . | . . . . . . . . . . . . . . . . . . . . . . . . . . . . . . . . . . . . Machines Dismantled . | . . . . . . . . . . . . . . . . . . . . . . . . . . . . . . . . . . . . Machines Sabotaged . | . . . . . . . . . . . . . . . . . . . . . . . . . . . . . . . . . . . . Overloaded Fab Kills . | . . . . . . . . . . . . . . . . . . . . . . . . . . . . . . . . . . . . Hacking | -11 -10 -10 -9 -9 -9 -8 -8 -7 -7 -7 -7 -7 -7 -7 -7 -6 -6 -6 -6 -6 -6 -6 -5 -5 -5 -5 -5 -4 -4 -4 -3 -2 -2 -2 -1 --------- Run | Yrd Mat Min Mat Min Exi Min Mat Fac Gar Fac Gar Fac Low Low Dat Pro Fac Was Fac Low Low Zio Pro Fac Upp Upp War Pro Fac Gar Res Res Tes Sec Acc Machines Accessed 159 | . 6 1 2 . 5 . 14 8 3 21 4 5 . 2 4 . 10 . 23 . . . . 17 . . 7 1 9 2 9 6 . . . Terminals 87 | . 5 . 2 . . . 11 5 3 14 4 3 . . . . 6 . 10 . . . . 9 . . . 1 3 2 5 4 . . . Fabricators 19 | . . . . . . . . 2 . 4 . 2 . . . . . . 4 . . . . 4 . . . . 1 . 2 . . . . Repair Stations 9 | . . . . . . . 1 . . . . . . . . . 1 . 3 . . . . 2 . . . . 1 . 1 . . . . Recycling Units 5 | . 1 . . . . . 1 . . . . . . . . . 1 . 1 . . . . . . . . . 1 . . . . . . Scanalyzers 7 | . . . . . . . 1 . . 1 . . . . . . . . 2 . . . . 1 . . . . 1 . 1 . . . . Garrison Access 13 | . . . . . . . . 1 . 2 . . . . . . 2 . 3 . . . . 1 . . . . 2 . . 2 . . . Total Hacks 717 | . 23 1 6 . 50 . 63 31 8 94 10 19 . 2 27 . 30 . 84 . . . . 106 . . 20 1 61 8 57 16 . . . Successful 387 | . 8 1 2 . 50 . 34 14 4 62 3 11 . 2 27 . 19 . 39 . . . . 43 . . 20 1 20 1 20 6 . . . Failed 328 | . 14 . 4 . . . 28 17 4 32 7 8 . . . . 11 . 45 . . . . 63 . . . . 41 7 37 10 . . . Catastrophic 59 | . 1 . 1 . . . 6 1 3 3 2 1 . . . . 1 . 3 . . . . 12 . . . . 8 2 11 4 . . . Database Lockouts 2 | . 1 . . . . . 1 . . . . . . . . . . . . . . . . . . . . . . . . . . . . Manual 239 | . 7 . 2 . 1 . 30 12 6 23 9 10 . . . . 7 . 19 . . . . 48 . . . . 24 7 31 3 . . . Terminals 365 | . 21 . 6 . . . 49 22 8 52 10 13 . . . . 20 . 38 . . . . 64 . . . 1 17 8 22 14 . . . Fabricators 111 | . . . . . . . . 8 . 25 . 6 . . . . . . 14 . . . . 22 . . . . 13 . 23 . . . . Repair Stations 37 | . . . . . . . 4 . . . . . . . . . 4 . 11 . . . . 8 . . . . 4 . 6 . . . . Recycling Units 9 | . 2 . . . . . 3 . . . . . . . . . 1 . 1 . . . . . . . . . 2 . . . . . . Scanalyzers 54 | . . . . . . . 7 . . 13 . . . . . . . . 10 . . . . 4 . . . . 14 . 6 . . . . Garrison Access 41 | . . . . . . . . 1 . 4 . . . . . . 5 . 10 . . . . 8 . . . . 11 . . 2 . . . Terminal Hacks 221 | . 6 1 2 . 50 . 23 9 4 24 3 6 . 2 27 . 8 . 14 . . . . 15 . . 20 1 . 1 2 3 . . . Record 86 | . . . . . 49 . 4 . . . . . . 1 11 . . . . . . . . . . . 19 1 . . . 1 . . . Part Schematic 12 | . . . . . . . . 2 . . . . . . 9 . . . 1 . . . . . . . . . . . . . . . . Robot Schematic 10 | . . . . . . . . 1 . 3 . 1 . . 4 . . . 1 . . . . . . . . . . . . . . . . Robot Analysis 16 | . 2 . 1 . . . 1 3 . 3 . 4 . . . . . . 1 . . . . 1 . . . . . . . . . . . Prototype ID Bank 19 | . . . . . . . 2 1 . 6 . . . . 3 . 1 . 5 . . . . 1 . . . . . . . . . . . Open Door 5 | . . 1 . . . . . . 1 . 1 . . 1 . . . . . . . . . . . . 1 . . . . . . . . Open DSF 2 | . . . . . . . . . . 1 . . . . . . . . . . . . . . . . . . . . . 1 . . . Level Access Points 3 | . . . . . . . 1 . . . . . . . . . 1 . 1 . . . . . . . . . . . . . . . . Branch Access Points 5 | . . . 1 . . . . 1 . . . 1 . . . . . . 1 . . . . . . . . . . . . 1 . . . Emergency Access Points 2 | . . . . . . . 1 . . . . . . . . . . . . . . . . 1 . . . . . . . . . . . Machine Index 1 | . . . . . . . . 1 . . . . . . . . . . . . . . . . . . . . . . . . . . . Terminal Index 5 | . . . . . . . 1 . . 1 . . . . . . 1 . 1 . . . . . . . . . . . 1 . . . . Repair Station Index 2 | . . . . . . . . . . . . . . . . . 1 . . . . . . 1 . . . . . . . . . . . Garrison Index 2 | . . . . . . . 1 . . 1 . . . . . . . . . . . . . . . . . . . . . . . . . Alert Level 3 | . 1 . . . . . 2 . . . . . . . . . . . . . . . . . . . . . . . . . . . . Unreport Threat 13 | . 1 . . . . . 2 . . 2 . . . . . . 3 . 1 . . . . 3 . . . . . . 1 . . . . Locate Traps 1 | . . . . . . . . . . . . . . . . . . . 1 . . . . . . . . . . . . . . . . Disarm Traps 3 | . . . . . . . . . . . . . . . . . 1 . . . . . . 2 . . . . . . . . . . . Reprogram Traps 5 | . . . . . . . 1 . . 3 . . . . . . . . 1 . . . . . . . . . . . . . . . . Dispatch Records 2 | . 1 . . . . . 1 . . . . . . . . . . . . . . . . . . . . . . . . . . . . Transport Status 1 | . . . . . . . . . . . . . . . . . . . . . . . . 1 . . . . . . . . . . . Recall Reinforcements 2 | . . . . . . . 1 . . . . . . . . . . . . . . . . 1 . . . . . . . . . . . Hauler Manifests 2 | . . . . . . . 1 . . . . . . . . . . . . . . . . 1 . . . . . . . . . . . Registered Components 3 | . . . . . . . 1 . . 1 . . . . . . . . . . . . . 1 . . . . . . . . . . . Zone Layout 9 | . 1 . . . . . 3 . . 3 . . . . . . . . . . . . . 2 . . . . . . . . . . . Garrison Registry 2 | . . . . . . . . . 1 . 1 . . . . . . . . . . . . . . . . . . . . . . . . Patrol Navigation 2 | . . . . . . . . . 1 . . . . . . . . . . . . . . . . . . . . 1 . . . . . Security Stations 2 | . . . . . . . . . 1 . 1 . . . . . . . . . . . . . . . . . . . . . . . . Derelict Proto ID Bank 1 | . . . . . 1 . . . . . . . . . . . . . . . . . . . . . . . . . . . . . . Fabricator Hacks 61 | . . . . . . . . 4 . 23 . 5 . . . . . . 8 . . . . 11 . . . . 3 . 7 . . . . Network Status 6 | . . . . . . . . . . 1 . 1 . . . . . . 1 . . . . 1 . . . . 1 . 1 . . . . Load Schematic 29 | . . . . . . . . 2 . 11 . 2 . . . . . . 4 . . . . 5 . . . . 1 . 4 . . . . Build 26 | . . . . . . . . 2 . 11 . 2 . . . . . . 3 . . . . 5 . . . . 1 . 2 . . . . Repair Station Hacks 24 | . . . . . . . 4 . . . . . . . . . 4 . 6 . . . . 5 . . . . 1 . 4 . . . . Scan Component 14 | . . . . . . . 2 . . . . . . . . . 2 . 4 . . . . 3 . . . . 1 . 2 . . . . Repair 10 | . . . . . . . 2 . . . . . . . . . 2 . 2 . . . . 2 . . . . . . 2 . . . . Recycling Unit Hacks 6 | . 2 . . . . . 1 . . . . . . . . . 1 . 1 . . . . . . . . . 1 . . . . . . Retrieve Components 6 | . 2 . . . . . 1 . . . . . . . . . 1 . 1 . . . . . . . . . 1 . . . . . . Scanalyzer 35 | . . . . . . . 6 . . 13 . . . . . . . . 5 . . . . 4 . . . . 6 . 1 . . . . Insert Component 17 | . . . . . . . 3 . . 6 . . . . . . . . 2 . . . . 2 . . . . 3 . 1 . . . . Analyze 18 | . . . . . . . 3 . . 7 . . . . . . . . 3 . . . . 2 . . . . 3 . . . . . . Garrison Access Hacks 11 | . . . . . . . . 1 . 2 . . . . . . 2 . 1 . . . . 1 . . . . 2 . . 2 . . . Unlock Access 11 | . . . . . . . . 1 . 2 . . . . . . 2 . 1 . . . . 1 . . . . 2 . . 2 . . . Unauthorized Hacks 29 | . . . . . . . . . . . . . . . . . 4 . 4 . . . . 7 . . . . 7 . 6 1 . . . Terminals 18 | . . . . . . . . . . . . . . . . . 3 . 1 . . . . 6 . . . . 3 . 4 1 . . . Assimilate 10 | . . . . . . . . . . . . . . . . . 3 . 1 . . . . 2 . . . . 1 . 3 . . . . Botnet 8 | . . . . . . . . . . . . . . . . . . . . . . . . 4 . . . . 2 . 1 1 . . . Fabricators 3 | . . . . . . . . . . . . . . . . . . . . . . . . . . . . . 1 . 2 . . . . Fabnet 3 | . . . . . . . . . . . . . . . . . . . . . . . . . . . . . 1 . 2 . . . . Repair Stations . | . . . . . . . . . . . . . . . . . . . . . . . . . . . . . . . . . . . . Recycling Units 1 | . . . . . . . . . . . . . . . . . . . . . . . . . . . . . 1 . . . . . . Reject 1 | . . . . . . . . . . . . . . . . . . . . . . . . . . . . . 1 . . . . . . Scanalyzers . | . . . . . . . . . . . . . . . . . . . . . . . . . . . . . . . . . . . . Garrison Access 7 | . . . . . . . . . . . . . . . . . 1 . 3 . . . . 1 . . . . 2 . . . . . . Reprogram 7 | . . . . . . . . . . . . . . . . . 1 . 3 . . . . 1 . . . . 2 . . . . . . Data Cores Recovered 2 | . 1 . . . . . . . . 1 . . . . . . . . . . . . . . . . . . . . . . . . . Used . | . . . . . . . . . . . . . . . . . . . . . . . . . . . . . . . . . . . . Hacking Detections 118 | . 5 . 2 . . . 12 8 2 16 3 5 . . . . 7 . 22 . . . . 15 . . . 1 6 2 8 4 . . . Full Trace Events 29 | . . . . . . . 1 2 . 3 2 2 . . . . 2 . 5 . . . . 6 . . . . 2 . 1 3 . . . Feedback Events 1 | . . . . . . . . . . 1 . . . . . . . . . . . . . . . . . . . . . . . . . Corruption 1 | . . . . . . . . . . 1 . . . . . . . . . . . . . . . . . . . . . . . . . Feedback Blocked 2 | . . . . . . . . . . . . . . . . . . . . . . . . 1 . . . . 1 . . . . . . Robot Schematics Acquired 12 | . . . . . . . . 1 . 3 . 1 . . 4 . . . 1 . . 2 . . . . . . . . . . . . . Robots Built 37 | . . . . . . . . 2 . 19 . 3 . . . . . . 2 . . . . 9 . . . . . . 2 . . . . Authchips 13 | . . . . . . . . . . 9 . . . . . . . . 1 . . . . 1 . . . . . . 2 . . . . Time 2120 | . . . . . . . . 76 . 1169 . 102 . . . . . . 134 . . . . 345 . . . . 116 . 178 . . . . Total Robot Build Rating 134 | . . . . . . . . 6 . 58 . 11 . . . . . . 8 . . . . 43 . . . . . . 8 . . . . Part Schematics Acquired 40 | . . . . . . . 3 2 . 5 . . . . 9 . . . 2 . . 15 . 2 . . . . 2 . . . . . . Parts Built 5 | . . . . . . . . . . . . . . . . . . . 3 . . . . 2 . . . . . . . . . . . Authchips . | . . . . . . . . . . . . . . . . . . . . . . . . . . . . . . . . . . . . Time 225 | . . . . . . . . . . . . . . . . . . . 167 . . . . 58 . . . . . . . . . . . Total Part Build Rating 33 | . . . . . . . . . . . . . . . . . . . 19 . . . . 14 . . . . . . . . . . . Parts Repaired 9 | . . . . . . . 2 . . . . . . . . . 2 . 2 . . . . 2 . . . . . . 1 . . . . Time 502 | . . . . . . . 82 . . . . . . . . . 100 . 65 . . . . 85 . . . . . . 170 . . . . Parts Recycled . | . . . . . . . . . . . . . . . . . . . . . . . . . . . . . . . . . . . . Recycled Matter . | . . . . . . . . . . . . . . . . . . . . . . . . . . . . . . . . . . . . Retrieved Matter . | . . . . . . . . . . . . . . . . . . . . . . . . . . . . . . . . . . . . Retrieved Components 14 | . . . . . . . 9 . . . . . . . . . 3 . 2 . . . . . . . . . . . . . . . . Parts Scanalyzed 15 | . . . . . . . 3 . . 5 . . . . . . . . 2 . . . . 2 . . . . 2 . 1 . . . . Part Schematics Acquired 13 | . . . . . . . 3 . . 5 . . . . . . . . 1 . . . . 2 . . . . 2 . . . . . . Parts Damaged 2 | . . . . . . . . . . . . . . . . . . . . . . . . . . . . . 1 . 1 . . . . Bothacking | -11 -10 -10 -9 -9 -9 -8 -8 -7 -7 -7 -7 -7 -7 -7 -7 -6 -6 -6 -6 -6 -6 -6 -5 -5 -5 -5 -5 -4 -4 -4 -3 -2 -2 -2 -1 ------------ Run | Yrd Mat Min Mat Min Exi Min Mat Fac Gar Fac Gar Fac Low Low Dat Pro Fac Was Fac Low Low Zio Pro Fac Upp Upp War Pro Fac Gar Res Res Tes Sec Acc Used RIF Installer 1 | . . . . . . . . . . . . . . . . . . . . . . . . . . . . . . 1 . . . . . Robots Hacked 26 | . . . . . . . . . . 1 . . . . . 1 . . . . . . . . . . . . . . . 18 . 6 . Non-combat 2 | . . . . . . . . . . 1 . . . . . 1 . . . . . . . . . . . . . . . . . . . Combat 24 | . . . . . . . . . . . . . . . . . . . . . . . . . . . . . . . . 18 . 6 . Robot Hacks Applied 4 | . . . . . . . . . . 1 . . . . . 1 . . . . . . . . . . . . . . . 2 . . . parse_system 4 | . . . . . . . . . . 1 . . . . . 1 . . . . . . . . . . . . . . . 2 . . . Relay Couplers Released 82 | . . . . . . . . . 17 . 38 . . . . . 4 . . . . . . . . . . . 2 20 . 1 . . . Machine Destruction 78 | . . . . . . . . . 17 . 38 . . . . . . . . . . . . . . . . . 2 20 . 1 . . . Programmers 4 | . . . . . . . . . . . . . . . . . 4 . . . . . . . . . . . . . . . . . . Attached 2 | . . . . . . . . . . . . . . . . . . . . . . . . . . . . . . 2 . . . . . Fabnet Peak Effective % 6 | . . . . . . . . . . . . . . . . . . . . . . . . . . . . . . . . 6 6 6 2 Autooverrided 22 | . . . . . . . . . . . . . . . . . . . . . . . . . . . . . . . . 16 . 6 . Robots Rewired 11 | . . . . . . . . . . . 5 . . . . . . . . . . . . 1 . . 5 . . . . . . . . Allies Hacked 6 | . . . . . . . . . . . . . . . . . . . 1 . . . . 4 . . . . . . 1 . . . . Hacks Repelled 1 | . . . . . . . . . . . . . . . . . . . . . . . . . . . . . . . 1 . . . . Allies | -11 -10 -10 -9 -9 -9 -8 -8 -7 -7 -7 -7 -7 -7 -7 -7 -6 -6 -6 -6 -6 -6 -6 -5 -5 -5 -5 -5 -4 -4 -4 -3 -2 -2 -2 -1 -------- Run | Yrd Mat Min Mat Min Exi Min Mat Fac Gar Fac Gar Fac Low Low Dat Pro Fac Was Fac Low Low Zio Pro Fac Upp Upp War Pro Fac Gar Res Res Tes Sec Acc Total Allies 122 | . . 1 . . . . . 2 1 19 5 3 . . . 1 2 1 7 . . . . 15 . . 5 . 3 2 6 16 . 6 27 Largest Group 18 | . . 1 . . . . . 2 2 18 17 11 2 . . 1 1 2 5 . . . . 6 . . 5 5 7 5 3 2 . 1 8 Highest-Rated Group 388 | . . 31 . . . . . 44 57 388 386 289 54 . . 96 29 60 144 . . . . 195 . . 253 253 365 235 130 116 . 69 114 Highest-Rated Ally 96 | . . 31 . . . . . 26 31 40 40 40 31 . . 96 29 31 41 . . . . 49 . . 65 65 65 65 56 82 . 69 15 Warlord Squad Rendezvous 13 | . . . . . . . . . . . . . . . . . 2 . 6 . . . . 5 . . . . . . . . . . . Dakka 5 | . . . . . . . . . . . . . . . . . . . 2 . . . . 3 . . . . . . . . . . . Muscle 1 | . . . . . . . . . . . . . . . . . . . 1 . . . . . . . . . . . . . . . . Geek 1 | . . . . . . . . . . . . . . . . . . . 1 . . . . . . . . . . . . . . . . Ranger 1 | . . . . . . . . . . . . . . . . . 1 . . . . . . . . . . . . . . . . . . Pyro 2 | . . . . . . . . . . . . . . . . . . . 1 . . . . 1 . . . . . . . . . . . Chimera 1 | . . . . . . . . . . . . . . . . . . . . . . . . 1 . . . . . . . . . . . Ghost 2 | . . . . . . . . . . . . . . . . . 1 . 1 . . . . . . . . . . . . . . . . Total Orders 139 | . . . . . . . . 4 23 35 38 3 . . . . . . 8 . 2 . . 2 . . 9 . . 7 1 7 . . . STAY 77 | . . . . . . . . 2 15 20 27 2 . . . . . . 2 . . . . . . . 4 . . 4 1 . . . . FOLLOW 47 | . . . . . . . . 2 8 15 11 1 . . . . . . 2 . . . . . . . 5 . . 3 . . . . . EXPLORE 13 | . . . . . . . . . . . . . . . . . . . 4 . 2 . . . . . . . . . . 7 . . . RETURN 2 | . . . . . . . . . . . . . . . . . . . . . . . . 2 . . . . . . . . . . . Ally Attacks 643 | . . 11 . . . . . . 7 83 150 67 1 . . 2 8 . 65 . . . . 110 . . 5 . 46 20 5 26 . 6 31 Total Damage 18314 | . . 149 . . . . . . 63 1903 3031 1509 . . . 45 95 . 1563 . . . . 5273 . . 209 . 1681 881 191 841 . 215 665 Kills 148 | . . 2 . . . . . . . 18 35 11 . . . . 2 . 10 . . . . 48 . . . . 9 5 . 7 . . 1 Allies Corrupted 2 | . . . . . . . . . . . . . . . . . . . . . . . . . . . . . 1 . . . . 1 . Allies Melted 6 | . . . . . . . . . . . . . . 1 . . . . . . . . . . . . 1 . 1 . . 3 . . . Intel | -11 -10 -10 -9 -9 -9 -8 -8 -7 -7 -7 -7 -7 -7 -7 -7 -6 -6 -6 -6 -6 -6 -6 -5 -5 -5 -5 -5 -4 -4 -4 -3 -2 -2 -2 -1 ------- Run | Yrd Mat Min Mat Min Exi Min Mat Fac Gar Fac Gar Fac Low Low Dat Pro Fac Was Fac Low Low Zio Pro Fac Upp Upp War Pro Fac Gar Res Res Tes Sec Acc Robot Analysis Total 15 | . 2 . 1 . . . 1 3 . 2 . 4 . . . . . . 1 . . . . 1 . . . . . . . . . . . Derelict Logs Recovered 15 | . . 1 . 1 . . . . . . . . 1 1 . 2 . . . . 3 2 . . 1 1 . 2 . . . . . . . Drone Launches 26 | . . . . . . . . . . . . . . . . . . . 4 . 3 . . 2 . . . . . . 6 11 . . . Drone Recoveries 13 | . . . . . . . . . . . . . . . . . . . 2 . 1 . . 2 . . . . . . . 8 . . . Decoded 0b10 Intel 113 | . . . . . . . . . . . . . . . . . . . . . . . . 4 . . . . 26 46 37 . . . . Items 109 | . . . . . . . . . . . . . . . . . . . . . . . . . . . . . 26 46 37 . . . . Garrisons 1 | . . . . . . . . . . . . . . . . . . . . . . . . 1 . . . . . . . . . . . Patrols 3 | . . . . . . . . . . . . . . . . . . . . . . . . 3 . . . . . . . . . . . Exploration | -11 -10 -10 -9 -9 -9 -8 -8 -7 -7 -7 -7 -7 -7 -7 -7 -6 -6 -6 -6 -6 -6 -6 -5 -5 -5 -5 -5 -4 -4 -4 -3 -2 -2 -2 -1 ------------- Run | Yrd Mat Min Mat Min Exi Min Mat Fac Gar Fac Gar Fac Low Low Dat Pro Fac Was Fac Low Low Zio Pro Fac Upp Upp War Pro Fac Gar Res Res Tes Sec Acc Turns Passed 19713 | 112 169 496 398 99 239 14 1035 664 1206 1688 992 396 186 285 20 161 910 28 1254 135 318 348 40 1341 143 407 981 265 401 1240 1174 1582 79 676 231 Spaces Moved 34790 | 50 180 719 201 171 440 28 1259 947 1460 1880 1309 556 348 874 75 456 1650 95 2952 364 848 1179 166 2536 471 761 1471 257 659 2226 1897 3895 229 1731 450 Core 3 | 3 . . . . . . . . . . . . . . . . . . . . . . . . . . . . . . . . . . . Treads . | . . . . . . . . . . . . . . . . . . . . . . . . . . . . . . . . . . . . Legs 948 | . . . 178 . . . . . . . . . . . . . . . . . . . . . . . . . . . . . . 335 435 Wheels 194 | 47 147 . . . . . . . . . . . . . . . . . . . . . . . . . . . . . . . . . . Hover 1666 | . 33 719 23 171 132 . . . . . . . . . . . . . . . . . . . . . . . . . 588 . . . . Flight 31933 | . . . . . 308 28 1259 947 1460 1880 1309 556 348 874 75 456 1650 95 2952 364 848 1179 166 2536 471 761 1471 257 659 2226 1309 3895 229 1365 . Fastest Speed 20 | 50 56 56 56 56 50 50 50 50 37 37 37 34 30 26 26 26 23 24 24 24 24 24 24 20 22 25 22 92 20 24 26 22 30 28 30 Average Speed 33 | 81 75 57 115 56 51 50 50 50 52 47 37 36 30 26 26 26 26 24 25 24 24 24 24 21 24 25 34 92 25 26 35 26 30 30 47 Slowest Speed 190 | 90 80 60 190 56 56 50 50 50 120 117 117 37 34 72 26 26 105 25 105 24 24 27 24 98 25 25 92 92 99 27 180 105 30 106 90 Overloaded Moves . | . . . . . . . . . . . . . . . . . . . . . . . . . . . . . . . . . . . . Propulsion Burnouts . | . . . . . . . . . . . . . . . . . . . . . . . . . . . . . . . . . . . . Robots Hopped 209 | . . . . . . . 11 . 1 24 . . 1 2 . . 27 . 36 2 2 . . 22 . . 1 . 6 . 18 44 4 8 . Cave-ins Triggered 1 | . . . . . . . . . . . . . . . . . 1 . . . . . . . . . . . . . . . . . . Teleports 69 | . . . . . . . . . . . . . . . . . . . . . . . . . . . . . . . . . . 53 16 Spacefolds 18 | . . . . . . . . . . . . . . . . . . . . . . . . . . . . . . . . . . 12 6 Exploration Rate (%) 55 | 3 45 94 23 41 90 10 92 20 90 34 81 17 55 83 68 66 27 69 47 50 81 87 37 52 69 91 86 54 19 81 45 63 38 82 21 Regions Visited 35 Branch Regions 18 Pre-discovered Areas 5 | . . . . . 1 . . . . . . . 1 . 1 . . . . . . 1 . . . . . 1 . . . . . . . Known Exits Taken 13 | . . . 1 1 . . 1 1 . 1 . 1 1 . . . . . 1 . . . 1 1 . . . 1 1 . . 1 . . . Unknown Exits Taken 17 | 1 1 1 . . 1 1 . . . . . . . 1 1 1 . . . 1 1 1 . . 1 1 1 . . . 1 . 1 1 . Scrap Searched 25 | . . 1 . . . . . . . . . . 3 1 . 2 . . . 3 2 3 1 . 2 3 . 4 . . . . . . . Spaces Dug 57 | . . . . . . . 11 7 . . . . . . . . . . 11 . 4 1 . 5 . . 6 . 4 3 . 5 . . . Terrain Destroyed 2332 | . . . . . . . 121 52 301 88 249 59 22 28 . 80 109 . 229 2 5 1 . 168 2 146 154 23 107 83 3 23 . 168 109 Melee 18 | . . . . . . . 11 7 . . . . . . . . . . . . . . . . . . . . . . . . . . . Projectile 216 | . . . . . . . . 9 3 . 2 . . . . . . . 11 2 5 1 . 101 2 13 2 . 6 28 3 22 . 2 4 AOE 2097 | . . . . . . . 110 36 298 88 247 59 22 28 . 80 109 . 218 . . . . 67 . 133 152 23 101 55 . . . 166 105 Terrain Rammed . | . . . . . . . . . . . . . . . . . . . . . . . . . . . . . . . . . . . . Walls Destroyed . | . . . . . . . . . . . . . . . . . . . . . . . . . . . . . . . . . . . . Machines Disabled . | . . . . . . . . . . . . . . . . . . . . . . . . . . . . . . . . . . . . Actions | -11 -10 -10 -9 -9 -9 -8 -8 -7 -7 -7 -7 -7 -7 -7 -7 -6 -6 -6 -6 -6 -6 -6 -5 -5 -5 -5 -5 -4 -4 -4 -3 -2 -2 -2 -1 --------- Run | Yrd Mat Min Mat Min Exi Min Mat Fac Gar Fac Gar Fac Low Low Dat Pro Fac Was Fac Low Low Zio Pro Fac Upp Upp War Pro Fac Gar Res Res Tes Sec Acc Total 40691 | 84 200 768 295 173 452 27 1555 1064 1757 2630 1722 698 424 920 74 482 1989 98 3292 397 950 1241 165 3005 490 949 1834 283 851 2722 2279 4318 233 1815 455 Wait 3277 | . 1 10 19 . . . 162 30 115 700 274 76 68 19 . 1 210 . 171 3 77 29 . 221 11 158 174 20 112 210 212 174 . 20 . Move 34342 | 49 179 718 200 170 439 27 1238 946 1457 1836 1308 555 345 869 74 455 1604 94 2883 359 843 1178 165 2491 470 760 1468 256 646 2225 1860 3820 220 1695 440 Hop 176 | . . . . . . . 9 . 1 19 . . 1 2 . . 19 . 32 2 2 . . 22 . . 1 . 6 . 18 30 4 8 . Pick Up 252 | 8 5 6 1 1 4 . 26 9 17 11 8 2 2 4 . . 10 1 12 2 3 5 . 14 . 3 14 2 9 21 12 26 1 13 . Fast Attach 334 | 7 2 . 9 . 1 . 9 4 5 10 2 2 2 7 . 3 29 2 34 4 2 8 . 15 3 2 23 . 8 17 36 69 1 17 1 Attach 118 | . . . 3 . 2 . 1 2 3 11 . 10 1 3 . . 3 . 12 1 . 1 . 9 . 1 6 . 10 10 15 8 1 3 2 Detach 119 | . . . 4 . 2 . 4 2 4 5 . 8 . 2 . . 2 1 15 1 . . . 6 . . 4 . 9 8 14 16 2 8 2 Swap 209 | 1 3 . 3 1 1 . 3 8 18 8 19 5 2 3 . 5 18 . 30 . 7 4 . 28 . . 3 1 2 8 10 11 1 5 1 Drop 438 | 2 4 9 4 1 3 . 26 12 17 10 7 5 2 6 . 3 30 . 32 4 7 13 . 26 2 5 34 2 17 22 33 88 2 10 . Fire 1067 | 17 6 25 13 . . . 13 34 84 17 57 35 1 5 . 13 64 . 71 10 9 3 . 163 4 20 70 2 32 120 66 76 1 32 4 Melee 124 | . . . 38 . . . 64 17 . 3 . . . . . 2 . . . . . . . . . . . . . . . . . . . Ram 1 | . . . . . . . . . . . . . . . . . . . . . . . . . . . . . . . 1 . . . . Kick 9 | . . . 1 . . . . . . . . . . . . . . . . . . . . . . . . . . . . . . 3 5 Crush . | . . . . . . . . . . . . . . . . . . . . . . . . . . . . . . . . . . . . Escape Stasis 154 | . . . . . . . . . 36 . 36 . . . . . . . . . . . . . . . . . . 81 . . . 1 . Rewire 58 | . . . . . . . . . . . 11 . . . . . . . . . . . . 10 . . 37 . . . . . . . . Trap 11 | . . . . . . . . . . . . . . . . . . . . 11 . . . . . . . . . . . . . . . Miscellaneous 2 | . . . . . . . . . . . . . . . . . . . . . . . . . . . . . . . 2 . . . . Route ------- -11/Scrapyard -10/Materials (discovered 2 exits: *Mat / *Min) -10/Mines (discovered 2 exits: *Mat x2) -9/Materials (discovered 3 exits: *Min / Sto x2) -9/Mines (discovered 3 exits: *Mat x2 / *Exi) -9/Exiles -8/Mines -8/Materials (discovered 3 exits: *Fac x3) -7/Factory (discovered 4 exits: *Fac / Low x2 / Gar) -7/Garrison (discovered 4 exits: *Fac x4) -7/Factory (discovered 3 exits: *Fac / Gar / Gar) -7/Garrison (discovered 3 exits: *Fac x3) -7/Factory (discovered 3 exits: *Fac / *Low x2) -7/Lower Caves -7/Lower Caves (discovered 2 exits: *Fac / *Dat) -7/Data Miner -6/Proximity Caves -6/Factory (discovered 7 exits: *Fac x4 / *Low / Gar / Gar) -6/Waste -6/Factory (discovered 9 exits: *Fac x4 / *Low x2 / Ext x2 / Gar) -6/Lower Caves -6/Lower Caves (discovered 2 exits: *Fac / [*Zio]) -6/Zion (discovered 2 exits: Dee / [*Pro]) -5/Proximity Caves -5/Factory (discovered 7 exits: *Fac x4 / *Upp x2 / Gar) -5/Upper Caves -5/Upper Caves (discovered 2 exits: *Fac / *War) -5/Warlord -4/Proximity Caves -4/Factory (discovered 4 exits: Res / *Upp x2 / Gar) -4/Garrison (discovered 2 exits: *Res x2) -3/Research (discovered 3 exits: *Res x2 / Arm) -2/Research (discovered 5 exits: [*Acc] / *Tes x2 / Gar / Gar) -2/Testing -2/Section 7 -1/Access To Fleet Rendezvous History --------- Turn | Location | Event 36 | -11/Scrapyard | Discovered new exit (range 15) 113 | -11/Scrapyard | Entered Materials 181 | -10/Materials | Discovered new exit (range 6) 200 | -10/Materials | Central database locked down 200 | -10/Materials | Discovered new exit (range 18) 282 | -10/Materials | Entered Mines 299 | -10/Mines | Met a Derelict shopkeep closing up shop 323 | -10/Mines | Build established: Mutant 350 | -10/Mines | Learned Materials emergency access door positions 355 | -10/Mines | Received a Mining Laser from a helpful Derelict 370 | -10/Mines | A weapon hastily lodged in a ceiling crevice suddenly fell to the ground 423 | -10/Mines | Discovered new exit (range 9) 615 | -10/Mines | Discovered new exit (range 7) 778 | -10/Mines | Entered Materials 778 | -9/Materials | Evolved 2 slots: Propulsion x2 882 | -9/Materials | Identified exit to Mines 882 | -9/Materials | Identified exit to Storage 1158 | -9/Materials | Core integrity fell below 50% 1176 | -9/Materials | Entered Mines 1176 | -9/Mines | Discovered new exit (range 15) 1186 | -9/Mines | Discovered new exit (range 15) 1189 | -9/Mines | Identified exit to Exiles 1192 | -9/Mines | Assembled infested the area 1202 | -9/Mines | Lost 5 parts (4n1w) 1219 | -9/Mines | Met 8R-AWN 1275 | -9/Mines | Entered Exiles 1289 | -9/Exiles | Welcomed by 8R-AWN 1298 | -9/Exiles | Met EX-HEX 1314 | -9/Exiles | Met EX-BIN 1322 | -9/Exiles | Aligned with FarCom system 1323 | -9/Exiles | Given EX-Vault access code 1345 | -9/Exiles | Opened EX-Vault 1350 | -9/Exiles | Found Flying Fortress v7 1365 | -9/Exiles | Warned to stay clear of 0b10 Research branches 1405 | -9/Exiles | Met EX-DEC 1419 | -9/Exiles | Visited The Gauntlet 1479 | -9/Exiles | Learned location of Zion (-6) 1508 | -9/Exiles | Discovered new exit (range 14) 1514 | -9/Exiles | Left Exiles lab with Flying Fortress v7 1514 | -9/Exiles | Entered Mines 1521 | -8/Mines | Discovered new exit (range 15) 1528 | -8/Mines | Entered Materials 1528 | -8/Materials | Evolved 2 slots: Utility x2 1752 | -8/Materials | Central database locked down 1817 | -8/Materials | Discovered new exit (range 7) 1908 | -8/Materials | Met 7R-MNS 1909 | -8/Materials | Build established: Hacker-Mutant 2181 | -8/Materials | Repaired Hrd. Medium Armor Plating 2226 | -8/Materials | Repaired Ripper 2284 | -8/Materials | Discovered new exit (range 6) 2327 | -8/Materials | Discovered new exit (range 9) 2333 | -8/Materials | Identified exit to Factory 2563 | -8/Materials | Entered Factory 2563 | -7/Factory | Evolved 2 slots: Utility x2 2564 | -7/Factory | Caught up to 7R-MNS 2745 | -7/Factory | Fabricated O-24 Administrator (x1) 2759 | -7/Factory | Discovered new exit (range 16) 2921 | -7/Factory | Fabricated O-24 Administrator? 2956 | -7/Factory | Identified exit to Garrison 2959 | -7/Factory | Found Prototype Launcher 2959 | -7/Factory | Identified Rocket Array 3021 | -7/Factory | Identified exit to Lower Caves 3118 | -7/Factory | Garrison activated, responded to threat 3227 | -7/Factory | Entered Garrison 3227 | -7/Garrison | Accompanied by 1 ally 3265 | -7/Garrison | Phase Generator disabled 3412 | -7/Garrison | Triggered checkpoint 3457 | -7/Garrison | Discovered new exit (range 49) 3457 | -7/Garrison | Discovered new exit (range 61) 3457 | -7/Garrison | Discovered new exit (range 54) 3457 | -7/Garrison | Discovered new exit (range 59) 3457 | -7/Garrison | Learned Factory security intel 3464 | -7/Garrison | Garrison Relay disabled 3508 | -7/Garrison | Triggered checkpoint 3508 | -7/Garrison | Triggered checkpoint 3550 | -7/Garrison | Triggered checkpoint 3753 | -7/Garrison | Garrison Relay disabled 3756 | -7/Garrison | Triggered checkpoint 3887 | -7/Garrison | Triggered checkpoint 3919 | -7/Garrison | Garrison Relay disabled 3935 | -7/Garrison | Rescued a captive Derelict 3984 | -7/Garrison | Triggered checkpoint 4024 | -7/Garrison | Triggered checkpoint 4102 | -7/Garrison | Garrison Relay disabled 4122 | -7/Garrison | Triggered checkpoint 4433 | -7/Garrison | Entered Factory 4433 | -7/Factory | Accompanied by 1 ally 4435 | -7/Factory | Identified exit to DSF 4473 | -7/Factory | Discovered new exit (range 9) 4618 | -7/Factory | Fabricated O-24 Administrator (x1) 4735 | -7/Factory | Fabricated H-55 Commando (x2) 4743 | -7/Factory | Fabricated O-24 Administrator? 4873 | -7/Factory | Fabricated H-55 Commando? 4877 | -7/Factory | Fabricated H-55 Commando? 5087 | -7/Factory | Fabricated H-55 Commando? 5105 | -7/Factory | Fabricated H-55 Commando? 5155 | -7/Factory | Build established: Commander-Mutant 5213 | -7/Factory | Fabricated H-55 Commando? 5232 | -7/Factory | Fabricated H-55 Commando? 5764 | -7/Factory | Fabricated H-55 Commando? 5853 | -7/Factory | Identified exit to Garrison 5960 | -7/Factory | Identified exit to Garrison 6033 | -7/Factory | First assault squad dispatched 6065 | -7/Factory | Fabricated I-36 Angel (x1) 6121 | -7/Factory | Entered Garrison 6121 | -7/Garrison | Accompanied by 17 allies 6128 | -7/Garrison | Phase Generator disabled 6203 | -7/Garrison | Garrison Relay disabled 6208 | -7/Garrison | Triggered checkpoint 6330 | -7/Garrison | P-60 Hacker assimilated allied Commando 4c 6367 | -7/Garrison | Discovered new exit (range 70) 6367 | -7/Garrison | Discovered new exit (range 32) 6367 | -7/Garrison | Discovered new exit (range 73) 6426 | -7/Garrison | Triggered checkpoint 6434 | -7/Garrison | Triggered checkpoint 6450 | -7/Garrison | Triggered checkpoint 6468 | -7/Garrison | Triggered checkpoint 6506 | -7/Garrison | Triggered checkpoint 6527 | -7/Garrison | Garrison Relay disabled 6544 | -7/Garrison | Garrison Relay disabled 6635 | -7/Garrison | Garrison Relay disabled 6638 | -7/Garrison | Triggered checkpoint 6715 | -7/Garrison | Lost 3 allies 6823 | -7/Garrison | Garrison Relay disabled 6834 | -7/Garrison | Lost 5 allies 6954 | -7/Garrison | Triggered checkpoint 6996 | -7/Garrison | Triggered checkpoint 7005 | -7/Garrison | Garrison Relay disabled 7028 | -7/Garrison | Learned Factory security intel 7113 | -7/Garrison | Entered Factory 7113 | -7/Factory | Accompanied by 10 allies 7216 | -7/Factory | Fabricated M-28 Smith (x1) 7304 | -7/Factory | High security lockdown imminent 7353 | -7/Factory | Discovered new exit (range 15) 7384 | -7/Factory | High security lockdown engaged 7392 | -7/Factory | Core integrity fell below 50% 7396 | -7/Factory | Fabricated P-60 Hacker (x2) 7450 | -7/Factory | Lost 9 allies 7509 | -7/Factory | Entered Lower Caves 7509 | -7/Lower Caves | Accompanied by 2 allies 7511 | -7/Lower Caves | Attracted the attention of an 0b10 outpost 7528 | -7/Lower Caves | Met a Warlord Commander 7529 | -7/Lower Caves | Learned location of Warlord (-5) 7530 | -7/Lower Caves | Warlord Commander delivered Encrypted Comm Array 7533 | -7/Lower Caves | Found Encrypted Comm Array 7593 | -7/Lower Caves | Identified exit to Lower Caves 7645 | -7/Lower Caves | Attracted the attention of an 0b10 checkpoint 7695 | -7/Lower Caves | Entered another Lower Caves area 7700 | -7/Lower Caves | Discovered new exit (range 10) 7707 | -7/Lower Caves | Encountered a Warlord checkpoint 7749 | -7/Lower Caves | Lost 3 parts (1n2w) 7780 | -7/Lower Caves | System corruption reached 10% 7860 | -7/Lower Caves | Learned location of 1 exit from Factory 7972 | -7/Lower Caves | Discovered new exit (range 5) 7980 | -7/Lower Caves | Entered Data Miner 7980 | -7/Data Miner | Discovered new exit (range 6) 7985 | -7/Data Miner | Met Data Miner 7990 | -7/Data Miner | Learned location of Section 7 (-2) 7990 | -7/Data Miner | Acquired the access code to Warlord's prototype stash 7994 | -7/Data Miner | Received God Mode back door access code from Data Miner 7998 | -7/Data Miner | Build established: Hacker-Sprinter 8000 | -7/Data Miner | Entered Proximity Caves 8052 | -6/Proximity Caves | Escorted by Enhanced Grunt 8054 | -6/Proximity Caves | Learned Factory stockpile data 8059 | -6/Proximity Caves | Spotter reported a threat 8060 | -6/Proximity Caves | Spotter reported a threat 8149 | -6/Proximity Caves | Spotter reported a threat 8153 | -6/Proximity Caves | Discovered new exit (range 15) 8155 | -6/Proximity Caves | Learned location of 1 exit from Proximity Caves 8156 | -6/Proximity Caves | Spotted B-75 Beast 8161 | -6/Proximity Caves | Entered Factory 8161 | -6/Factory | Evolved 2 slots: Propulsion x1, Utility x1 8162 | -6/Factory | Identified exit to Lower Caves 8206 | -6/Factory | Repaired Surge Thruster 8270 | -6/Factory | Repaired Micro-nuke Launcher 8381 | -6/Factory | Joined by Warlord Ghost squad 8480 | -6/Factory | Garrison activated, responded to threat 8511 | -6/Factory | Search patrols dispatched 8572 | -6/Factory | Crushed by falling debris 8603 | -6/Factory | Lost 5 parts (1n4u) 8624 | -6/Factory | System corruption reached 10% 8687 | -6/Factory | Identified exit to Garrison 8857 | -6/Factory | Joined by Warlord Ranger squad 8885 | -6/Factory | Identified exit to Factory 8889 | -6/Factory | Identified exit to Garrison 8959 | -6/Factory | Garrison activated, responded to threat 9002 | -6/Factory | Lost 3 parts (2n1u) 9071 | -6/Factory | Sucked down chute 9071 | -6/Factory | Entered Waste 9072 | -6/Waste | Met a frightened Derelict 9075 | -6/Waste | 1 allies followed down the chute 9090 | -6/Waste | Spotted C-40 Crusher 9093 | -6/Waste | Spotted C-40 Crusher 9094 | -6/Waste | Spotted C-40 Crusher 9094 | -6/Waste | Spotted C-40 Crusher 9094 | -6/Waste | Spotted C-40 Crusher 9094 | -6/Waste | Discovered new exit (range 13) 9099 | -6/Waste | Identified exit to Factory 9099 | -6/Waste | Entered Factory 9157 | -6/Factory | Identified exit to Garrison 9158 | -6/Factory | Discovered exit to Lower Caves (range 15) 9168 | -6/Factory | Discovered exit to Lower Caves (range 10) 9240 | -6/Factory | Discovered exit to Factory (range 16) 9258 | -6/Factory | Repaired Broken Impulse Thruster 9280 | -6/Factory | Fabricated P-60 Hacker (x2) 9336 | -6/Factory | Joined by Warlord Pyro squad 9399 | -6/Factory | Fabricated Impulse Thruster? 9501 | -6/Factory | Joined by Warlord Ghost squad 9519 | -6/Factory | Lost 3 parts (2n1w) 9521 | -6/Factory | Lost 4 allies 9556 | -6/Factory | Repaired System Restoration Module 9614 | -6/Factory | Joined by Warlord Muscle squad 9707 | -6/Factory | Joined by Warlord Geek squad 9729 | -6/Factory | Spotted B-75 Beast 9744 | -6/Factory | Joined by Warlord Dakka squad 9749 | -6/Factory | Discovered exit to Factory (range 14) 9750 | -6/Factory | Garrison activated, responded to threat 9777 | -6/Factory | Destroyed B-75 Beast 9805 | -6/Factory | Lost 4 allies 9890 | -6/Factory | Garrison activated, responded to threat 9994 | -6/Factory | Cargo convoy interrupted 10010 | -6/Factory | Garrison activated, responded to threat 10043 | -6/Factory | Core integrity fell below 50% 10046 | -6/Factory | Destroyed 8 combat bots 10149 | -6/Factory | First assault squad dispatched 10239 | -6/Factory | Identified exit to Extension 10272 | -6/Factory | Fabricated Lgt. Regenerative Plating (x1) 10302 | -6/Factory | Joined by Warlord Dakka squad 10353 | -6/Factory | Entered Lower Caves 10389 | -6/Lower Caves | Spotted B-75 Beast 10481 | -6/Lower Caves | Attracted the attention of an 0b10 checkpoint 10487 | -6/Lower Caves | Discovered new exit (range 4) 10488 | -6/Lower Caves | Entered another Lower Caves area 10509 | -6/Lower Caves | Discovered exit to Factory (range 8) 10540 | -6/Lower Caves | Attracted the attention of an 0b10 checkpoint 10616 | -6/Lower Caves | Learned Factory stockpile data 10629 | -6/Lower Caves | Encountered a Warlord checkpoint 10761 | -6/Lower Caves | Learned 8 Factory zone layouts 10761 | -6/Lower Caves | Spotted B-75 Beast 10802 | -6/Lower Caves | Discovered new exit (range 3) 10804 | -6/Lower Caves | Learned 12 Factory zone layouts 10806 | -6/Lower Caves | Entered Zion 10830 | -6/Zion | Discovered new exit (range 12) 10835 | -6/Zion | System corruption cleaned by Quarantine Array 10840 | -6/Zion | Found Prototype Device 10840 | -6/Zion | Identified Bomb Factory No. 2 10853 | -6/Zion | Given the Hacking Drone Bay 10854 | -6/Zion | Found Prototype Device 10857 | -6/Zion | Identified Hacking Drone Bay 10915 | -6/Zion | Identified exit to Deep Caves 10935 | -6/Zion | Learned Factory non-interactive machine intel 10982 | -6/Zion | Learned Factory emergency access door positions 10999 | -6/Zion | Found CR-A16's Pointy Stick 11079 | -6/Zion | Rebuked by Imprinter 11154 | -6/Zion | Entered Proximity Caves 11194 | -5/Proximity Caves | Entered Factory 11194 | -5/Factory | Evolved 2 slots: Propulsion x1, Utility x1 11195 | -5/Factory | Identified exit to Factory 11195 | -5/Factory | Identified exit to Upper Caves 11198 | -5/Factory | Loaded intel: 231 non-interactive machine locations 11335 | -5/Factory | Joined by Warlord Pyro squad 11349 | -5/Factory | Joined by Warlord Chimera squad 11437 | -5/Factory | Fabricated H-66 Slayer (x2) 11494 | -5/Factory | First assault squad dispatched 11562 | -5/Factory | Joined by Warlord Dakka squad 11589 | -5/Factory | Found Prototype Processor 11589 | -5/Factory | Identified Exp. Targeting Computer 11601 | -5/Factory | Discovered exit to Factory (range 22) 11730 | -5/Factory | Lost 4 allies 11869 | -5/Factory | Spotted B-75 Beast 11957 | -5/Factory | Joined by Warlord Dakka squad 12042 | -5/Factory | Fabricated G-50 Soldier? 12050 | -5/Factory | Fabricated H-66 Slayer? 12114 | -5/Factory | Fabricated Impulse Thruster (x2) 12170 | -5/Factory | Repaired Impulse Thruster 12226 | -5/Factory | Repaired Electron Diverter 12275 | -5/Factory | Joined by Warlord Dakka squad 12352 | -5/Factory | Lost 3 allies 12355 | -5/Factory | High security lockdown imminent 12365 | -5/Factory | Identified exit to Garrison 12385 | -5/Factory | Fabricated P-60 Hacker? 12390 | -5/Factory | Garrison activated, responded to threat 12399 | -5/Factory | Hacker 6a assimilated hostile H-66 Slayer 12435 | -5/Factory | High security lockdown engaged 12503 | -5/Factory | Hacker 6b assimilated hostile B-60 Warrior 12535 | -5/Factory | Entered Upper Caves 12557 | -5/Upper Caves | Lost 6 allies 12562 | -5/Upper Caves | Attracted the attention of an 0b10 checkpoint 12589 | -5/Upper Caves | Spotted B-75 Beast 12627 | -5/Upper Caves | Learned 8 Factory zone layouts 12676 | -5/Upper Caves | Discovered new exit (range 4) 12678 | -5/Upper Caves | Entered another Upper Caves area 12679 | -5/Upper Caves | Encountered a Warlord checkpoint 12689 | -5/Upper Caves | Discovered exit to Factory (range 15) 13044 | -5/Upper Caves | Destroyed 8 combat bots 13048 | -5/Upper Caves | Attracted the attention of an 0b10 checkpoint 13083 | -5/Upper Caves | Discovered new exit (range 9) 13085 | -5/Upper Caves | Entered Warlord 13176 | -5/Warlord | Met Warlord 13201 | -5/Warlord | Warlord's base attacked by MAIN.C 13248 | -5/Warlord | Found Prototype Energy Cannon 13248 | -5/Warlord | Identified Vortex Cannon 13250 | -5/Warlord | Found Prototype Energy Gun 13250 | -5/Warlord | Identified Vortex Rifle 13259 | -5/Warlord | Found Vortex Cannon 13262 | -5/Warlord | Found Vortex Rifle 13516 | -5/Warlord | Lost 3 allies 13551 | -5/Warlord | Warlord forces counterattacked 13556 | -5/Warlord | Spotted Executioner 13566 | -5/Warlord | Destroyed Executioner 13639 | -5/Warlord | Destroyed 8 combat bots 13701 | -5/Warlord | Spotted Striker 13740 | -5/Warlord | Lost 10 allies 13801 | -5/Warlord | Spotted B-86 Titan 13801 | -5/Warlord | Spotted Executioner 13801 | -5/Warlord | Spotted Striker 13801 | -5/Warlord | Spotted B-75 Beast 13808 | -5/Warlord | P-70 Sage assimilated allied 1K-6FJ(g) 13811 | -5/Warlord | P-80 Master assimilated allied D4-LO1(g) 13818 | -5/Warlord | Destroyed Executioner 13831 | -5/Warlord | Destroyed Striker 13853 | -5/Warlord | Lost 3 parts (1u2w) 13855 | -5/Warlord | Destroyed 11 combat bots 13867 | -5/Warlord | Lost 11 allies 13876 | -5/Warlord | Warlord base infiltrated, sounded retreat 13879 | -5/Warlord | Destroyed B-86 Titan 14002 | -5/Warlord | Spotted Executioner 14002 | -5/Warlord | Spotted B-75 Beast 14003 | -5/Warlord | Spotted B-86 Titan 14017 | -5/Warlord | Destroyed Striker 14017 | -5/Warlord | Destroyed LN-YFZ(B) 14043 | -5/Warlord | Discovered new exit (range 17) 14053 | -5/Warlord | Lost 12 allies 14066 | -5/Warlord | Entered Proximity Caves 14066 | -4/Proximity Caves | Accompanied by 5 allies 14068 | -4/Proximity Caves | Build established: Hacker-Mutant 14110 | -4/Proximity Caves | Learned location of Testing (-2) 14273 | -4/Proximity Caves | Discovered exit to Factory (range 13) 14303 | -4/Proximity Caves | Learned location of 1 exit from Research 14331 | -4/Proximity Caves | Entered Factory 14331 | -4/Factory | Accompanied by 5 allies 14331 | -4/Factory | Evolved 2 slots: Propulsion x1, Utility x1 14332 | -4/Factory | Identified exit to Upper Caves 14333 | -4/Factory | Identified exit to Research 14425 | -4/Factory | Identified exit to Garrison 14429 | -4/Factory | Spotted B-86 Titan 14466 | -4/Factory | Destroyed B-86 Titan 14529 | -4/Factory | Destroyed 7 combat bots 14529 | -4/Factory | Lost 5 allies 14600 | -4/Factory | Found Prototype Hackware 14600 | -4/Factory | Identified Exp. System Shield 14627 | -4/Factory | Discovered exit to Upper Caves (range 21) 14715 | -4/Factory | Identified exit to Garrison 14732 | -4/Factory | Entered Garrison 14732 | -4/Garrison | Accompanied by 3 allies 14830 | -4/Garrison | Rescued a captive Derelict 14832 | -4/Garrison | Rescued a captive Derelict 14881 | -4/Garrison | Installed Relay Interface Framework 14887 | -4/Garrison | Lost 3 allies 14957 | -4/Garrison | Spotted B-86 Titan 14977 | -4/Garrison | Destroyed B-86 Titan 14998 | -4/Garrison | Triggered checkpoint 15010 | -4/Garrison | Build established: Hacker-Sprinter 15077 | -4/Garrison | Garrison Relay disabled 15300 | -4/Garrison | Triggered checkpoint 15304 | -4/Garrison | Triggered checkpoint 15387 | -4/Garrison | Lost 3 parts (1p1n1u) 15485 | -4/Garrison | Discovered exit to Research (range 8) 15549 | -4/Garrison | Discovered exit to Research (range 10) 15559 | -4/Garrison | Garrison Relay disabled 15562 | -4/Garrison | Triggered checkpoint 15585 | -4/Garrison | Triggered checkpoint 15713 | -4/Garrison | Garrison Relay disabled 15716 | -4/Garrison | Triggered checkpoint 15873 | -4/Garrison | Garrison Relay disabled 15961 | -4/Garrison | Spotted B-90 Cyclops 15972 | -4/Garrison | Entered Research 15972 | -3/Research | Evolved 2 slots: Utility x2 15973 | -3/Research | Identified exit to Armory 16108 | -3/Research | Spotted B-86 Titan 16210 | -3/Research | Repaired Field Propulsion Array 16264 | -3/Research | First assault squad dispatched 16412 | -3/Research | Found Prototype Launcher 16412 | -3/Research | Identified Tesla Bomb Launcher 16555 | -3/Research | Discovered new exit (range 6) 16586 | -3/Research | Build established: Scavenger-Mutant 16768 | -3/Research | Spotted B-86 Titan 16910 | -3/Research | Discovered new exit (range 21) 17014 | -3/Research | Lost 3 parts (1p1u1w) 17080 | -3/Research | Fabricated P-60 Hacker? 17146 | -3/Research | Entered another Research area 17146 | -2/Research | Accompanied by 6 allies 17146 | -2/Research | Warlord forces began assault on 0b10 17146 | -2/Research | Evolved 2 slots: Power x1, Propulsion x1 17194 | -2/Research | Identified exit to Testing 17199 | -2/Research | Spotted B-90 Cyclops 17229 | -2/Research | Spotted B-90 Cyclops 17233 | -2/Research | Identified exit to Garrison 17256 | -2/Research | Research machine network offline 17263 | -2/Research | Lost 6 allies 17271 | -2/Research | Lost 3 parts (1n2u) 17357 | -2/Research | Build established: Hacker-Scout 17407 | -2/Research | Borebot progress halted 17445 | -2/Research | Found Prototype Device 17445 | -2/Research | Identified Exp. Thermal Shield 17494 | -2/Research | Borebot progress halted 17586 | -2/Research | Borebot progress halted 17595 | -2/Research | Found Prototype Launcher 17595 | -2/Research | Identified Enh. Gamma Bomb Array 17657 | -2/Research | Discovered new exit (range 15) 17771 | -2/Research | Met up with Warlord 17777 | -2/Research | Spotted Striker 17811 | -2/Research | Lost 3 allies 17867 | -2/Research | Found Exp. Targeting Computer 17888 | -2/Research | Spotted Striker 17918 | -2/Research | Build established: Hacker-Sprinter 17984 | -2/Research | Found Unknown Launcher 17984 | -2/Research | Identified Gamma Bomb Array 18076 | -2/Research | Spotted Executioner 18078 | -2/Research | Spotted Executioner 18081 | -2/Research | Spotted Executioner 18085 | -2/Research | Spotted Executioner 18086 | -2/Research | Destroyed Executioner 18130 | -2/Research | Lost 5 allies 18152 | -2/Research | Warlord invited to help at Command 18223 | -2/Research | Spotted Executioner 18226 | -2/Research | Spotted Striker 18266 | -2/Research | Lost 4 allies 18460 | -2/Research | Found Prototype Protection 18460 | -2/Research | Identified Centrium Heavy Armor Plating 18480 | -2/Research | Identified exit to Garrison 18483 | -2/Research | Found Prototype Device 18483 | -2/Research | Identified Thermal Barrier 18728 | -2/Research | Entered Testing 18729 | -2/Testing | Maximum security lockdown engaged 18785 | -2/Testing | Spotted Fortress 18805 | -2/Testing | Discovered new exit (range 6) 18807 | -2/Testing | Entered Section 7 18808 | -2/Section 7 | Maximum security lockdown engaged 18827 | -2/Section 7 | Found Alien Artifact 18827 | -2/Section 7 | Identified Integrity Redistributor 18827 | -2/Section 7 | Used Integrity Redistributor, redistributed integrity from core (-35) 18843 | -2/Section 7 | Spotted S7 Guard 18870 | -2/Section 7 | Found Integrity Redistributor 18870 | -2/Section 7 | Used Integrity Redistributor, redistributed integrity from core (-33) 18903 | -2/Section 7 | Local machine network offline 18940 | -2/Section 7 | Found Alien Artifact 18940 | -2/Section 7 | Identified Navigation Efficiency Matrix 18940 | -2/Section 7 | Installed Navigation Efficiency Matrix, process failed with unexpected side effects 18961 | -2/Section 7 | Discovered new exit (range 10) 18986 | -2/Section 7 | Found Alien Artifact 18986 | -2/Section 7 | Identified Integrated Mediator 18986 | -2/Section 7 | Installed Integrated Mediator, increased core attachment efficiency 19001 | -2/Section 7 | Found Alien Artifact 19001 | -2/Section 7 | Identified Spacefold Activator 19028 | -2/Section 7 | Spotted S7 Guard 19036 | -2/Section 7 | Found Alien Artifact 19036 | -2/Section 7 | Identified Core Physics Calibrator 19059 | -2/Section 7 | Spotted Alpha 7 19059 | -2/Section 7 | Spotted Alpha 7 19066 | -2/Section 7 | Spotted B-99 Colossus 19072 | -2/Section 7 | Spotted Executioner 19072 | -2/Section 7 | Spotted Executioner 19203 | -2/Section 7 | Found Alien Artifact 19203 | -2/Section 7 | Identified LRC Matter Compressor 19203 | -2/Section 7 | Installed LRC Matter Compressor, increased matter storage capacity (+125) 19206 | -2/Section 7 | Found LRC Matter Compressor 19206 | -2/Section 7 | Installed LRC Matter Compressor, increased matter storage capacity (+125) 19233 | -2/Section 7 | Found Alien Artifact 19235 | -2/Section 7 | Found Alien Artifact 19236 | -2/Section 7 | Found Alien Artifact 19236 | -2/Section 7 | Identified Core Reset Matrix (x3) 19236 | -2/Section 7 | Used Core Reset Matrix 19240 | -2/Section 7 | Sensed 13 artifacts in vicinity 19263 | -2/Section 7 | Spotted Executioner 19263 | -2/Section 7 | Spotted Executioner 19317 | -2/Section 7 | Integrated with Sigix Exoskeleton 19391 | -2/Section 7 | Found Transdimensional Reconstructor 19394 | -2/Section 7 | Found Transdimensional Reconstructor 19430 | -2/Section 7 | Found Terrabomb 19432 | -2/Section 7 | Found Terrabomb 19433 | -2/Section 7 | Found Terrabomb 19433 | -2/Section 7 | Used Terrabomb 19433 | -2/Section 7 | Spotted Executioner 19433 | -2/Section 7 | Spotted Striker 19440 | -2/Section 7 | Spotted Executioner 19474 | -2/Section 7 | Core integrity fell below 50% 19475 | -2/Section 7 | Discovered new exit (range 18) 19480 | -2/Section 7 | Spotted Executioner 19480 | -2/Section 7 | Spotted Executioner 19480 | -2/Section 7 | Spotted Striker 19480 | -2/Section 7 | Spotted Executioner 19481 | -2/Section 7 | P-80 Master assimilated allied H-88 Terminator 19481 | -2/Section 7 | Spotted Striker 19483 | -2/Section 7 | Sigix Exoskeleton integrity reduced to 80% 19483 | -2/Section 7 | Spotted Executioner 19483 | -2/Section 7 | Entered Access 19483 | -1/Access | Evolved 2 slots: Utility x1, Weapon x1 19488 | -1/Access | Emitted hypermatrix ping 19493 | -1/Access | Assembled emerged from beneath the floor 19495 | -1/Access | Spotted B-99 Colossus 19496 | -1/Access | Assembled emerged from beneath the floor 19518 | -1/Access | Assembled emerged from beneath the floor 19616 | -1/Access | Build established: Alien-Sigix 19649 | -1/Access | Assembled emerged from beneath the floor 19661 | -1/Access | Garrison activated, responded to threat 19690 | -1/Access | Discovered new exit (range 18) 19699 | -1/Access | Lost 4 allies 19714 | -1/Access | Spotted B-99 Colossus 19714 | -1/Access | Spotted B-99 Colossus 19714 | *** | Heading to fleet! Last Messages --------------- 19661_ Y-72 Warden calls for garrison reinforcements. 19661_ ALERT: Activating Garrison Access A003. 19662_ Kicked U-05 Engineer. 19664_ Slug penetrates Y-72 Warden. 19665_ Slug penetrates as-47294. 19665_ Penetrated by Slug. 19665_ Slug penetrates as-64363. 19665_ Slug penetrates as-99580. 19665_ as-99580 destroyed. 19667_ W-44 Eye sends out distress signal. 19670_ Navigation matrix triggers involuntary quantum shift. 19690_ EXIT=FOUND 19695_ K-01 Serf cleans the Terminal. 19697_ Navigation matrix triggers involuntary quantum shift. 19699_ Spacefolded through Wall. 19699_ K-01 Serf cleans the Terminal. 19707_ Spacefolded through Sealed Barrier. 19709_ Spacefolded through Main Access Shell. Sealed Barrier opened remotely. [Achievement: Home At Last?] Map ----- +----------------------------------------------------+ | ???????????????????????????? + # # | | ??????????????????????????? # # | | ?????????????????????????? # [ # | | ?????????????????????????##### # # | | ????????????????????????? #### # # | | ???????????????????????? + + ### ### | | ??????????????????????? #### ### # | | ??????????????????????? #### ### # | | ????????????????????? #### ### # | | ?????????????????? #### ### # | | ????????????????? #### ### # | | ???????????????#####+#############+########## ### | | ?????????????? k k | | ????????????? k k | | ????????????########################## p###+###### | | ????????????########################## ## ! | | ???????????########################### ## | | ??????????############################ ## "" | | ??????????############################%k## "" | | ?????????############################# ## "Y | | ?????????##################### ####### ## "" | | ?????????# ## "" / | | ???????? # BB ## | | ????????## BB ## | | ???????? %## | | ???????? "X ## = | | ???????? "" ## | | ??????? u ## | | ????????## BB k ## | | ????????## BB """ """ ## | | ????????## """T"""k ## | | ????????###################### #######k ## | | ????????############################## ## | | ?????????############################# #######+## | | ?????????############################# # # ## | | ?????????############################# # + | | ??????????############################ # # ## | | ???????????########################### # # ## | | ??????????? ######################### ####### ## | | ???????????? ######### k ###### ####### ## | | ????????????? ###### ##### ###### ## | | ?????????????? ###### ##### | | ???????????????? R ###### | | ????????????????? " ###### ##### ######### | | ???????????????????? ###### #####??########! | | ?????????????????????????#????????????? ## | | ?????????????????????????????????????? ## * | | ?????????????????????????????????????? ## | | ??????????????????????????????????????"" ##= | | ??????????????????????????????????????"" ## | +----------------------------------------------------+ Best States ------------- Heat Dissipation 122 Energy Generation 67 Energy Capacity 500 Matter Stores 425 Matter Capacity 550 Sight Range 23 Terrain Scan Range 20 Terrain Scan Density 210 ECM Strength 1 Jamming Range 16 Power Amplification 30 Additional Mass Support 20 Armor Coverage 600 Resistance: KI 50 Resistance: TH 50 Resistance: EX 50 Resistance: EM 50 Resistance: I 50 Resistance: S 50 Resistance: P 50 Power Shielding 66 Propulsion Shielding 66 Weapon Shielding 66 Weapon Cycling 25 Phase Shifting 15 Evasion (%) 79 Targeting Accuracy 24 Melee Accuracy 5 Target Analysis 8 Core Analysis 6 Recoil Reduction 4 Energy Filtering 50 Particle Charging 20 Kinecelleration 40 Salvage Targeting 1 Offensive Hacking 32 Defensive Hacking 54 Relay Coupler Types 1 Relay Coupler Value 29 Authchip Count 10 Item Schematics ----------------- None Robot Schematics ------------------ None Fabricated ------------ O-24 Administrator | x1 | -7/Factory O-24 Administrator | x1 | -7/Factory O-24 Administrator | x1 | -7/Factory | Authchip H-55 Commando | x2 | -7/Factory | Authchip O-24 Administrator | x1 | -7/Factory | Authchip H-55 Commando | x2 | -7/Factory | Authchip H-55 Commando | x2 | -7/Factory | Authchip H-55 Commando | x2 | -7/Factory | Authchip H-55 Commando | x2 | -7/Factory | Authchip H-55 Commando | x2 | -7/Factory | Authchip H-55 Commando | x2 | -7/Factory | Authchip H-55 Commando | x2 | -7/Factory I-36 Angel | x1 | -7/Factory M-28 Smith | x1 | -7/Factory P-60 Hacker | x2 | -7/Factory P-60 Hacker | x2 | -6/Factory | Authchip Impulse Thruster | x2 | -6/Factory Lgt. Regenerative Plating | x1 | -6/Factory H-66 Slayer | x2 | -5/Factory | Authchip G-50 Soldier | x3 | -5/Factory | Preloaded H-66 Slayer | x2 | -5/Factory Impulse Thruster | x2 | -5/Factory P-60 Hacker | x2 | -5/Factory P-60 Hacker | x2 | -3/Research | Authchip Alien Tech Used ----------------- Integrity Redistributor Navigation Efficiency Matrix Integrated Mediator Spacefold Activator Core Physics Calibrator LRC Matter Compressor Core Reset Matrix Sigix Exoskeleton Sigix Sheargun Terrabomb Achievements -------------- Great Explorer Home At Last? Challenges ------------ None Game ------ Seed MicroNeutronLaser Manual? 0 Play Time 09:35:04 Cumulative 244.6 hours Start 2024.04.04 @ 10:50:08 End 2024.04.05 @ 22:26:57 Sessions 5 Manual Loads 0 Difficulty Rogue Special Mode None Game No. 96 Rogue 96 Adventurer 0 Explorer 0 Win Type 2 Total 1 Types 0/0/1/0/0/0/0/0/0 Lore% 63 Gallery% 69 Achievement% 57 Wizard Run 0 Options --------- Layout 0 ASCII 0 Keyboard 1 Movement Arrows Keybinds 0 Fullscreen 1 Font 12/Proggy Map View 83x54 Zoom Use 0% Tactical HUD 1 Map Filters NONE Filters NONE Steam 0 RUN: b04e5a90-04c9-454b-b57e-48f0f594b338